{"text_format":"3","workbook":"xlsx","n_sheets":8,"sheets":["INSTRUCTIONS","1. Risk Rating Guide","2. HazardList","3.  Task Risk Assessment","4.  Employees","5. Training Expectations","6.  Training Verification","7.  Equipment"],"not_rendered":{"images":4,"defined_names":7},"read":"whole","date_system":"1900"}

{"sheet":"INSTRUCTIONS","index":0,"n_rows":0,"n_cols":0,"rows_kept":0}

{"sheet":"1. Risk Rating Guide","index":1,"n_rows":0,"n_cols":0,"rows_kept":0}

{"sheet":"2. HazardList","index":2,"n_rows":65,"n_cols":8,"rows_kept":65}
["1 Hazard Name","2 Description","3 Effect","4 Severity Rating","5 Likelihood Rating","6 Controls","7 Severity Rating","8 Likelihood Rating"]
["Adjacent work/process","Simultaneous Operations (SIMOPS)","Hazards created from other work groups in the area.",5,5,"Careful coordination with adjacent work groups to minimize hazards to others in the area. Potentially re-schedule work tasks to minimize or eliminate SIMOPS hazards.",5,1]
["Aerial Lift","Articulating and Straight Boom","Fall, Struck by, Pinch point, Carbon Monoxide Poisoning",5,4,"Inspect for defects. Test controls. Ensure the battery is charged. Inform affected workers about lift operation pinch points. Use a fall restraint system/full body harness/lanyard. Move the lift only while in the fully lowered position. Establish good housekeeping on platform decks. Use the lift only on smooth, solid, level surfaces. Observe rated capacity. Maintain a clear view of the area being navigated. Establish good housekeeping on platform decks. Use only for positioning workers/tools/equipment. Ensure that all tools and equipment fit within the basket. Barricade the area under the lift. Ensure a clear view of the work area for lift. Turn off gas powered lifts immediately after they are positioned inside a structure.",{"$f":"D3","v":5},1]
["Asbestos","Working around operations where asbestos is present and potentially disturbed byt sanding, scraping or drilling","Asbestosis, Lung cancer, Mesothelioma",4,3,"Identify materials asbestos, leave the area immediately, ensure that only certified abatement personnel remove  asbestos",4,1]
["Blood borne pathogens: e.g. AIDS virus and Hepatitis B virus","Contact with infected body fluids: e.g. medical and first aid personnel, sewage workers. Contact with contaminated blood products and dental, medical piercing instruments, e.g. patients","Acute: HIV positive; Hepatitis B infection.\nChronic: Carrier of AIDS and Hepatitis B Virus; AIDS (fatal);Hepatitis B Virus - liver failure and cancer (fatal)",3,3,"Only trained and qualified persons may handle and dispose of biohazard materials",3,1]
["Chainsaw","Chainsaws are efficient and productive portable power tools used in many industries. They are also potentially dangerous if not used correctly and carefully. Proper operation and maintenance greatly reduce the risk for injury when using chainsaws.","Severe lacerations, amputations, fatality.",5,4,"Only experienced and trained personnel may operate a chainsaw on Haskell projects.\nThe operator is required to wear chaps while using a chainsaw. This can greatly reduce or eliminate the most common injuries to the legs.\nHearing, eye and face protection shall also be worn by the operator while using a chainsaw.\nReview the OSHA fact sheet \"Working Safely with Chainsaws. Available on the Haskell website.\nGo to  www.haskellcorp.com > SAFETY > SAFETY RESOURCES > OSHA > Working Safely with Chainsaws",5,1]
["Cold Stress","Cold water; cool high winds e.g. work outside in cold climate; work inside fridges/freezers. May aggravate pre-existing conditions, e.g. musculo-skeletal problems","Hypothermia; frost bite",3,4,"Radiant heaters may be used to warm workers. Shield work areas from drafts or wind. Use insulating material on equipment handles when temperatures drop below 30° F.",3,1]
["Confined Space","Entry into tanks, vaults or other spaces not intended for human occupancy.","Asphyxiation, fire, engulfment",5,4,"Confined space attendant, atmospheric monitoring, adequate ventillation. Ensure that rescue equipment is available and in place.\nFor excavations - Ensure means of egress within 25 feet of all entrants into space. Ensure that internal combustion powered equipment does not pose  CO hazards.",5,1]
["Cranes - Critical Lift","Critical lift means a lift that (1) exceeds 75 percent of the rated capacity of the crane or derrick, or (2) requires the use of more than one crane or derrick.","Dropped loads, Struck by, Pinch points, Crushing, Electric shock",5,4,"Crane operator shall be competent, possess an Operator`s License and 3rd party certificate. Lift plan in place and reviewed by affected persons. Mobile crane shall be set up correctly on firm round, placed level, outrigger fully extend, outrigger pads placed on mats before any lifting activity. Inspect all rigging for defects. Barricade area under fall/hoist area. Determine and observe rated capacity. Ensure the correct type of sling is selected for the job. Protect rigging from sharp edges, use  ofteners. Tagline ropes shall be used to control the movement of the suspended objects. Keep loads and lines 10' or more away from energized electrical conductors. Establish hoist equipment load limits. Establish good housekeeping in the work area. Barricade the hoist area. Ensure affected people in the area are aware of the operation. Ensure that the signal person and operator agree upon and understand signals.",5,1]
["Cranes, Chainfall, Hoisting","Moving loads by crane or other lifting device","Struck by, pinch point, Electric shock",5,4,"Inspect for defects, barricade area under fall/hoist  area, determine and observe rated capacity, ensure the correct type of sling is selected for the job, protect rigging from sharp edges, use softeners,  Keep loads and lines 10' or more away from energized electrical conductors.\nEstablish hoist equipment load limits. Establish good housekeeping in the work area. Barricade the hoist area. Ensure affected people in the area are aware of the operation. Ensure that the signal person and operator agree upon and understand signals.",5,1]
["Employee Inexperience","New employeess, employees who have recently taken a new position","Accidents related to lack of training and experience",4,5,"ID Program, Increased foreman oversight, mentorship by senior worker",3,1]
["Engulfment","Collapse of excavation","Suffocation, Crushing Injury",4,5,"Shoring, Sloping, Benching of excavation. Spoils removed from site. Spoils maintained at a minimum of 2 feet from edge of excavation.  Mobile equipment kept away from while entrants are in the excavation.",4,1]
["Ergonomics- Body strain","Repetitive strain injury, discomfort in an office chair or desk, poor design of a particular job or task at a workplace that causes injury, manual handling of heavy loads, and anything in the environment that leads to uncomfortable or unnatural body positioning that can lead to injury.\n","Muscle strains, sprains, soft tissue injury",3,4,"Proper lifting mechanics, Get help to lift/move, use mechanical advantage/equipment",{"$f":"D13","v":3},1]
["Excavation","Sloughing of excavation walls, engulfment, water accumulation, equipment and materials falling into excavation","Asphyxiation,  engulfment, drowning, crushing, death",5,5,"Confined space attendant, atmospheric monitoring, daily inspections by competent person",5,1]
["Falling Objects","Unsecured objects, tools and materials could fall onto workers and equipment below.","Struck by injuries",4,5,"Tool lanyards, material screen, barricades, signage, situational awareness",4,1]
["Fatigue","Sleepiness, loss of focus/concentration, increase in work mistakes, shortcuts","Sleepiness, loss of focus/concentration, increase in work mistakes, shortcuts",4,5,"Fatigue management program",4,1]
["Fire","Welding operations may ignite flammable materials nearby","Burns, death",4,4,"Fire watch, Remove all combustible materials from the work area.\nRequest and receive a hot work permit and follow requirements listed. A Fire Watch as required by the Permit.\nAll personnel engaged in welding or cutting job tasks shall wear all industry recognized PPE to protect from burns either to the skin or the eyes. All workers assigned to the job will review the hot work permit.\nA 20 pound Type ABC fire extinguisher shall be readily accessible and immediately available when any open flame work is performed. \nCombustibles and flammables must be kept clear of the open flame work area. \nFire watches shall be trained and competent in the use of fire suppression equipment. Fire extinguishers must be checked monthly. Fire watches must have the means and know to call the Fire Department in case of an emergency. Fire watches are to remain 30 minutes after completion of open flame work is stopped. \nStore oxygen and acetylene cylinders in a secured in an upright position with caps in place with a minimum of 20 feet separation or separated by a noncombustible barrier at least 5 feet high having a fire resistance rating of one half hour except when in an approved cart ready for use. Proper signage regarding “No Smoking” or “Ignition Sources” must be posted.\nSmoking is only allowed in designated smoking areas.\nButane (e.g., Bic) lighters are not allowed to be carried by contractor employees engaged in welding or torch cutting/brazing or soldering operations. \nAll torch set cylinders must have the valves closed and the system de-pressured before going to breaks or lunch. ",4,1]
["Fire - Pyrophoric","A pyrophoric material can spontaneously ignite in air. The word is derived from Greek for \"fire-bearing\". Many pyrophoric materials also react vigorously with water or high humidity, often igniting upon contact.\n\nCombustible mixtures with air can exist ","Burns, death",5,5,"Facility specific controls for pyrophorics",5,1]
["Fire w/o Firewatch","Hotwork operations may ignite flammable materials nearby","Death, Burns, Explosion, Property damage",4,4,"Remove all combustible materials from the work area.\nA 20 pound Type ABC fire extinguisher shall be readily accessible during hot work.\nFire extinguishers must be checked monthly.\nStore oxygen and acetylene cylinders in a secured in an upright position with caps in place with a minimum of 20 feet separation or separated by a noncombustible barrier at least 5 feet high having a fire resistance rating of one half hour except when in an approved cart ready for use.\nSmoking is only allowed in designated smoking areas.\nButane (e.g., Bic) lighters are not allowed to be carried by employees engaged in welding or torch cutting/brazing or soldering operations.\nAll torch set cylinders must have the valves closed and the system de-pressured before going to breaks or lunch.",4,1]
["Flying Debris","Improperly secured material, airborne chips and debris can be ejected","Struck by injuries, foreign bodies in eye",4,5,"Secure materials properly, all affected persons shall weal ANSI rated eye and face protection",4,1]
["Forkift","Moving loads by forklift","Struck by, rollover, dropped loads",4,3,"Qualified operators only, spotter as needed, designated routes, situational awareness",4,1]
["H2S","H2S in vacated piping, operating processes","Loss of consciousness, aspxyiation, death",5,3,"Continuous monitiring, personal H2S monitors where required",5,1]
["Hand & Power Tools","Working in tight quarters. Use of hand tools.","Cuts, strains, abraisions and serious injuries",3,4,"Situational awareness, use tools appropriate for the task. Secure required permits. Inspect for defects. Ensure that the plug's ground prong is in place. Use GFCI. Ensure that guards are in place and properly positioned. Wear safety glasses, a face shield, gloves, and ear plugs. Remove flammable/combustible  materials from the work area. Keep a fire extinguisher nearby. Disconnect tool from power before working on or adjusting. Establish good housekeeping in the work area. Keep the work area well lit.",3,1]
["Hand Hazards","Workers’ hands are susceptible to many kinds of hazards in the performance of construction tasks.","Cuts and lacerations, abrasions, puncture wounds, thermal burns, chemical burns, frostbite, ",3,4,"Ensure that workers use hand and power tools correctly. Properly secure material being cut. Identify sharp tools and materials, PPE (gloves), Protect sharp eages as neeaed, Identify line-of-fire hazards",3,1]
["HDPE Heat Fusion","HDPE pipe fusion, each involves heating the pipe and applying pressure to fuse two pieces together. HDPE pipe fusion ensures long stretches of pipe are securely fused, resulting in a continuous, sealed connection.\n4 Types of HDPE Pipe Fusion\n1-Butt Fusion\n2-Electrofusion\n3-Socket Fusion\n4-Saddle Fusion","Crushing injuries, Cuts and lacerations,  Struck by flying debris, Burns",3,4,"No fusion machine should be used until the operator has carefully read and understands the \"Safety\" sections of the operator's manual.\nPick a safe staging area to perform pipe fusion. Vehicle or pedestrian traffic should be held to a minimum in the area in which the fusion operation is being performed. Also choose a location that has no overhead hazards.\nUse personal safety equipment. Always wear a hardhat and protective boots. Gloves can be helpful for protecting hands from the heater and sharp blades on the facer. Protective eyewear is always a good idea especially when cutting bands from pipe bundles or coils. Remove jewelry and rings, and do not wear loose-fitting clothing or long hair that could catch on controls or moving machinery.\nMake sure all equipment is in good working order. All power cords should be in good condition and make sure the grounding blade is not broken on the plug.\nHeaters are not explosion proof. Do not plug heaters in, in a potentially explosive atmosphere or while standing in water. If operating in a hazardous environment, the heater should be brought up to temperature in a safe environment, then unplugged before entering the hazardous atmosphere for fusion.\nWhen removing pipe from the fusion unit and pulling into place, use proper lifting slings and pulling heads, chains or ropes can slip and cause injury to yourself and/or bystanders, not to mention damage to the pipe.",{"$f":"D25","v":3},1]
["Head Knocker","Objects and structures protruding into the work area that personnel could accidently contact while performing their tasks.","Cuts, abraisions, strains, sprains",3,5,"Flagging, signage, situational awareness",3,1]
["Heat Stress","Metabolic (body) heat e.g. tank/furnace cleaning, aggravated by full body personal protective equipment;  externally imposed heat e.g. working outside in hot climate, work close to furnaces or flares","Heat stroke leading to death (lesser symptoms: exhaustion, cramps, rash, fatigue)",3,4,"Require adequate hydration. The CDS reccommends that workers in hot environments drink 16 to 32 ounces of water per hour.\nProvide shaded areas.\nFrequent breaks.",3,1]
["Hexavalent Chromium","All hexavalent chromium compounds are considered carcinogenic to workers. Hex Chrome is released during hotwork with stainless steel.","asthma, eye irritation and damage, perforated eardrums, respiratory irritation, kidney damage, liver damage, pulmonary congestion and edema, upper abdominal pain, nose irritation and damage, respiratory cancer, skin irritation",3,4,"Review/observe  SDS, Determine the concentration of chromium in stainless steel Provide adequate ventilation Position affected workers to keep fumes away from breathing zone Use respiratory protection when needed",3,1]
["Hydraulic Pressure - Hydroblasting","Excess hydraulic pressure can cause a line rupture  Hydroblaster water stream can cause significant injury","Fluid injection, serious infection, struck by injuries, death",4,5,"Flagging, signage, restricted access to area, Hydroblaster PPE",4,1]
["Hydrostatic Testing","Hydrostatic testing is a type of pressure test to verify the integrity of the system under pressurized conditions in the form of strength and leak testing of piping with components, pressure vessels, gas cylinders, boilers and others pressure equipment and systems. Typically, water is used as test media in hydrostatic test process.","Hydrostatic testing is a risky process as it involves pressurizing the system with high pressure which can fail and cause serious personal injury or property damage. Although testing is performed under the supervision of a competent person, the following is the risk associated with hydrostatic testing:\nIn the event of a leak or burst, a person can be injured by exposure to high pressure liquid. High pressure fluid can tear the skin and damage internal organs.\nThe pressure hose connection of hydraulic pump to test piping/ vessels can be detached and may hit a person nearby.\nTo control the above hazards, appropriate safety precautions must be ensured while performing hydrostatic test.\nThe hydrostatic test must only be performed under the supervision of a competent person.\nFollow the permit to work system and establish well communication.\nBarricade the area to restrict the man movement and display caution boards to alert people.",4,4,"Follow the permit to work system and communicate the associated hazards to affected personnel. Perform hydrostatic test under the supervision of a competent person only. Clearly mark the scope of hydrotest on P&ID and ensure positive isolation of equipment and piping that are not included in the hydrostatic test loop. Inspect all test equipment and tools, even if they are brand new. Check the design pressure of equipment such as vessel, piping, etc. before the test. Ensure calibration of pressure measuring instruments and tools. All fittings must be rated above the maximum hydrostatic pressure. Install whip check devices at ev+F28ery connection to secure the hoses\nEnsure the setting and calibration of safety relief valve. Install at least two pressure gauges at an appropriate place so that it is easily readable. Isolate, barricade the test area with safety signage. If possible, perform the test in a remote area. Make sure that all pipeline and vessel supports are firm, in good condition and have been inspected prior to start hydrotest. Start the depressurization by gradually opening the vent valve. Open the lowest drain point to remove water from the vessel, pipeline, etc. Always wear appropriate personal protective equipment (PPE).Follow the permit to work system and communicate the associated hazards to affected personnel. Perform hydrostatic test under the supervision of a competent person only. Clearly mark the scope of hydrotest on P&ID and ensure positive isolation of equipment and piping that are not included in the hydrostatic test loop.\nInspect all test equipment and tools, even if they are brand new.\nCheck the design pressure of equipment such as vessel, piping, etc. before the test.\nEnsure calibration of pressure measuring instruments and tools.\nAll fittings must be rated above the maximum hydrostatic pressure.\nInstall whip check devices at every connection to secure the hoses\nEnsure the setting and calibration of safety relief valve.\nInstall at least two pressure gauges at an appropriate place so that it is easily readable.\nIsolate, barricade the test area with safety signage. \nIf possible, perform the test in a remote area.\nMake sure that all pipeline and vessel supports are firm, in good condition and have been inspected prior to start hydrotest.\nStart the depressurization by gradually opening the vent valve.\nOpen the lowest drain point to remove water from the vessel, pipeline, etc.\nAlways wear appropriate personal protective equipment (PPE).",4,1]
["Icy Conditions","Snow and Ice","Slips and falls, cold stress",4,5,"Snow/ Ice Removal, Sandinging, SlIp-on Boot spikes, Hand Warmers, Cold Weather Gloves and clothing",4,1]
["Ladders","Using and working from ladders","Fall from height",4,4,"Secure top and bottom of ladder, Ensure nothing is carried using hands while on ladder",4,1]
["Lead Exposure","Paint removal","Organ damage. Nervous system problems. Reproductive system problems.",3,3,"Identify lead containing materials. Establish and monitor exposure. Provide  adequate ventilation. Use respiratory protection when needed Wear protective clothing. Establish and use proper decontamination practices.",{"$f":"D33","v":3},1]
["Line Break (first)","Initial opening of lines, potentially containing hazardous materials","Chemical hazard; asphyziation, pressure release injury, struck by injury, fire or explosion",5,4,"Line breaking training, loosen bolts down and away, verify that there is no pressure, bleed and check low point drains with rod, slowly open and check high point vents; use supplied air as needed; cordon off the affected area; keep unauthorized personnel away from the work zone",5,1]
["Machinery/Mobile Equipment","Mobile equipment maneuvering","Struck by injuries, death",5,4,"Hi visibility clothing to be worn by affected persons",5,1]
["Manual Lifting","Transporting or supporting of a load (including the lifting, putting down, pushing, pulling, carrying or moving) by hand or by bodily force.","Strains, sprains, muskuloskeletal disorder.",3,4,"Review lift method, assisted lifting/lowering, use of mechanical device whenever possible, hand protection from pinch points. Make changes to the working area to reduce the distance travelled with the load and the need for twisting or bending. Reduce the need of lifting from floor level or above shoulder height. Remember that it's better to push rather than pull the load. Assess the workplace to ensure that there are no obstructions (including doors), the flooring is adequate and that there is enough lighting to carry out the task safely. Make sure the load is stable.",3,1]
["Nitrogen","Used to purge unwanted gasses from vessels. Nitrogen is used commercially as an inerting\nagent to keep material free of contaminants\n(including oxygen) that may corrode\nequipment, present a fire hazard, or be toxic.\nNitrogen makes up 78% of the air we breath; because of this it is often assumed that nitrogen is not hazardous. However, nitrogen is safe to breath only if it is mixed with an appropriate amount of oxygen.\nAdditional nitrogen (lower oxygen) cannot be detected by the sense of smell.","A nitrogen enriched environment, which depletes oxygen, can be detected only with special instruments. If the concentration of nitrogen is too high (and oxygen too low), the body becomes oxygen deprived and asphyxiation occurs. ",5,4,"Maintain continuous forced draft ventilation with fresh air before job begins and through completion.\nContinuously monitor oxygen content of the affected area.\nEnsure that ventilation systems are properly designed, evaluated, and maintained.\nUse warning systems to alert personnel\nif the system fails.\nEmployees in confined spaces should wear\nequipment to facilitate retrieval, such as a body harness, anklets, or wristlets, and a lifeline. \nStandby personnel must be present at all times and have constant communication with personnel inside.\nPersonnel should not attempt rescue unless\nthey are properly trained and equipped. ",5,1]
["Noise (Over 85db - Requiring workers to raise voices to be heard at 3 feet)","Noisy plant and equipment e.g. aircraft, compressors, boilers, pumps, pneumatic tools, road driving, steam leaks, impact noise from handling drums and LPG cylinders, cartridge operated tools, engine testing.","Impact noise: rupture of eardrum; acoustic trauma.\nLoud steady noise:  Temporary threshold shift\nNoise induced hearing loss (Permanent threshold shift); tinnitus (ringing in the ears)",4,3,"Engineering: Where feasible, eliminate the source of noise; block or barricade the noise source; relocate noise source away from workers.\nAdministrative: Restrict acces to noise source area if feasible.\nPPE: If engineering and administrative controls are not feasible, workers must wear effective hearing protection if noise levels are above 85db.",4,1]
["NORM","Naturally occuring radioactive material. NORM can come to the earth's surface due to natural processes (radon gas moving through cracks in rocks or dissolving and being transported by ground water flows), or due to human activities (mining, oil and gas extraction, etc.).","The primary health risk of NORM is the potential for developing cancer.",5,3,"Minimizing the time that workers spend in an areas where NORM may be present. ",5,1]
["Overhead Loads","Hoisting material above","Struck by, Dropped loads",5,4,"Delineate area below, Communication with operator",5,1]
["Oxygen Deficiency","Can be attributed to decaying organic matter or metal oxidation (rust) consuming the oxygen in the space.","Loss of consciousness, aspxyiation, death",5,3,"Confined space attendant, atmospheric monitoring, adequate ventillation",5,1]
["Oxygen Enrichment","Oxygen content in confined spaces greater than 23.5%","Fire, explosion",5,3,"Confined space attendant, atmospheric monitoring, adequate ventillation",5,1]
["Pinch Points","A pinch point is any point at which it is possible for a person or part of a person’s body to be caught between moving parts of a machine, or between the moving and stationary parts of a machine, or between material and any part of the machine.","Cuts, strains, abraisions and serious injuries including death",4,4,"Flagging, signage, restricted access to area, situational awareness",4,1]
["Pneumatic Pressure Testing","Because of the higher level of potential\nenergy stored during gas compression,\npneumatic tests can be more dangerous\nthan hydrostatic tests. Ensuring that the\nsystem is suitable for pneumatic testing\ncan minimize the chance of brittle failure\nduring testing.","A rupture of the assembly while employees are in the danger zone (the area in close proximity to the pressure test). Failure of a fitting or component forming part of the assembly, which could be ejected under force as a projectile. Detachment of a test hose, striking people within the danger zone as it becomes a dangerous whip. Sudden explosive release of gas causing injury to eyes, ears or body. Enclosed areas containing gas being asphyxiation hazards. Slip and fall injuries. Injuries from exposure to explosive force. Penetrating injuries from flying projectiles. Asphyxiation. Loss of limbs or even loss of life.",5,4,"Establish a no entry zone in accordance with a pneumatic testing TNT chart for the pipe diameter and wall thickness. Know how the item being tested can be safely energized, monitored and vented. Understand how the test medium can be discharged without having personnel in the test danger zone. Inspect equipment for leaks, remotely if possible and practical. Intervention may be required to check for the origin of a leak. This should be done at a lower pressure and in controlled conditions. Use a hierarchy of control measures to reduce risk if intervention during pressure testing requires people\nto be placed in the danger zone. Products being tested are fully enclosed. Operators perform remote operation outside of the test danger zone. Anti-whip restraints and other safety devices are used to reduce unintentional pressure release or over-pressurization of equipment. Equipment being used during testing is fully maintained. Hoses, fittings and connectors are inspected and changed when worn or fatigued through repeated use.",5,1]
["Poor Lighting","Inadequate or no lighting in work area.","Falling, tripping, slipping. Dropping materials or tools. ",3,4,"Ensure lighting is adequate according to CFR -1915.82 - Lighting",3,1]
["Powder Actuated Tools","Hilti Gun"," Puncture, Eye damage",4,4,"Ensure that operator has specialized powder actuated tool training, and the appropriate evidence when required. Inspect for defects. Wear safety glasses, a face shield, gloves, and ear plugs. Inform/alert others in the work area before firing. Keep action pointed in a safe direction at all times. Select the most appropriate power setting. Make the operator aware of the potential for ricochets. Ensure that the operator knows not to move the tool for 30 seconds after a misfire. Ensure that misfired cartridges are disposed of properly.",4,1]
["Pressure\nHigh pressure fluid injection injuries (water; grease; other chemicals)","Hydrostatic Testing; Tank and line cleaning; grease guns","Possible infection, tissue necrosis, loss of body parts or death, in extreme cases, from water, water contaminants or chemicals passing into body tissues through the skin",4,4,"Secure required permit Notify other affected trades. Wear safety glasses, a face shield, gloves, and proper clothing. Barricade the work area. Isolate equipment. Ensure that hoses and pipe are rated for the anticipated test pressure. Ensure that all welds are free of insulation. Visually inspect all pipe welds. Ensure that gauges are inspected and calibrated. Ensure that test gauges range from 1 to 4 times test pressure. Use a gauge at the pressure source. Use a gauge at the highest or furthest point from the pressure source. Ensure that vents have been installed to blow off air. Ensure that drains have been installed. Ensure that the hold time is enough to steady the pressure and then walk the line. Increase test pressure in increments of 20% or less. Ensure that the gauge is stable before increasing pressure. Consider and address affected energized electrical conductors.",4,1]
["Radiations: alpha, beta, gamma and xray radiation","Sealed sources: Non destructive testing (NDT); Level/density measurement; X-ray fluorescence; smoke detectors; gas chromatographs. Unsealed sources: radio-labelled compounds for reaction tracing","Acute: cell damage (e.g. skin burns, sickness, loss of hair) - potentially fatal\nChronic: cancer",3,4,"Insert Controls",3,1]
["Rigging","Hoisting and moving heavy objects by crane or other material handling equipment","Struck by object, caught between",5,4,"Calculate the weight of the load. Rigger certification, equipment inspections, Select the proper size/load rating. Ensure the load rating tag is attached and legible. Inspect synthetic slings for cuts, tears, worn eyes and threads. Inspect cable chockers for kinks, wickers, rusting, and deterioration. Ensure shackles are properly sized and rated. Inspect shackles for defects/original pins. Arrange shackles to prevent side-loading. Shackle pin should be on the hook. Ensure the spreader bar is load rated and certified. Use softeners to protect chokers from sharp or angled edges. Ensure softeners are properly sized.",5,1]
["Saw - Portable Power","Sharp rotating blades, electric connection","Laceration, Amputation, Object in eye, Electric shock.",4,4,"Inspect for defects. Ensure guards are in place. Use GFCI. Wear safety glasses, gloves, and ear plugs. Establish good housekeeping in the work area. Secure material in place before cutting. Position yourself to use the saw safely. Keep feet and hands clear of operation. Unplug before maintaining the saw or changing the blade. Pre plan work and lay out cords to prevent tripping hazards.",4,1]
["Scaffolding","Erection and dismantling of scaffolds, work at height on scaffold","Falls, cuts, bruises, fractures, electrocution",5,4,"Perform a daily inspection. Inspect for defects, incompatible parts, and improper  erection. Ensure the scaffold is erected at least 10' from energized power lines. Ensure the scaffold will support at least 4 times the intended load. Use only on solid, level ground. Use top rails, mid rails, and toe boards when the work platform is 10' or higher above a lower level. Ensure the scaffold it properly tagged. Establish good housekeeping on work platforms. Inspect the ground for holes, cracks, debris, and encumbrances. Ensure wheels on mobile scaffolds are locked before climbing. Never move a scaffold with anyone onboard. Establish/designate a competent person to oversee inspections, erection and dismantling.",5,1]
["Slips & Trips","Unlevel, uneven or irregular surface. Potential for slippery surfaces depending on weather. Cords and Hoses.","Falls, cuts, bruises, fractures, death",3,4,"Maintain good housekeeping, use de-icer as needed, remove water and spills immediately, situational awareness, provide lighting in work area as necessary. Pre plan work and lay out cords and hoses to prevent tripping hazards.",3,1]
["Static Electricity","Static buildup can be found just about anywhere friction occurs.","Electric shock due to the flow of current through the body, causing a person everything from an uncomfortable zap to falls, burns, or stopping the heart.\n\nFires or explosions due to the ignition of flammable or explosive mixtures. Damage to electronic equipment and components from electrostatic discharge (ESD).",4,3,"Ensure equipment is adequately and continuously bonded and grounded, with ground verified .  Do not use plastic containers/containment.",4,1]
["Stored Energy","Hydraulic, gravity, spring tension","Various serious injuries including death",5,5,"Lockout Tagout of affected equipment, ensure stored energy has bee assessed and eliminated wherever possible/feasible, ",5,1]
["Supplied Air Work (Fresh Air)","Any work performed using atmosphere supplying respirators","Axphyxiation",5,4,"Take steps to ensure that supplied air is not interrupted. Steps include having alternate sources of power for air compressors, inspecting and replacing air hoses, and restricting traffic in areas with supply hoses. \nCarry escape packs. Ensure the composition of supplied breathing air is correct. Continuously monitor the air supply.",5,1]
["Tight quarters","Tight quarters may require awkward body positioning while working. ","Sprains and strains",3,3,"Focus on task, Pre plan work and lay out cords and hoses to prevent tripping hazards. Ensure there are no objects stored so as to proteude into designated walkways. Objects that pose injury by striking or contacting should be guarded.",3,1]
["Toxic substances","Subsatances in the area. Tools and equipment may be contaminated.","Can cause lung disease, including cancer. May damage skin. The effect can be immediate, such as dizziness or stinging eyes, or can take many years to develop, such as lung disease. ",5,4,"Maintain good housekeeping, restrict access, situational awareness",5,1]
["Traffic","Equipment, Vehilce, bicycle and pedestrian traffic on roadway","Struck by injuries, death",4,3,"Hi visibility clothing to be worn by affected persons",4,1]
["Vibration (hand)","Holding a vibrating tool, e.g. pneumatic drills, nut runners, torque wrenches, needle guns","Acute: tingling sensation in the fingers\nChronic: hand/arm vibration syndrome (HAVS), includes vibration white finger",3,3,"Anti vibration tools. Frequent breaks. Job rotation.",3,1]
["Vibration (whole body)","Holding a vibrating tool, e.g. pneumatic drills, nut runners, torque wrenches, needle guns","Acute: < 1 Hertz: Motion sickness; 2 - 20 Hertz: balance and vision disturbance\nChronic: Musculo-skeletal illness",3,3,"Anti vibration tools. Frequent breaks. Job rotation.",3,1]
["Weld Fumes","Fumes generated during welding and grinding opeartions","Prolonged exposure to welding fume may cause lung damage and various types of cancer, including lung, larynx and urinary tract. Health effects from certain fumes may include metal fume fever, stomach ulcers, kidney damage and nervous system damage.",3,3,"Welders should understand the hazards of the materials they are working with. Welding surfaces should be cleaned of any coating that could potentially create toxic exposure, such as solvent residue and paint. Workers should position themselves to avoid breathing welding fume and gases. For example, workers should stay upwind when welding in open or outdoor environments. ",3,1]
["Welding","Arc, Mig, Tig, Subarc","Electric shock, burn, fire, respiratory sensitization, welder's flash (ARC Flash)",4,4,"Secure permits, inspect leads for defects, wear helmet, safety glasses, welding gloves and clothing, adequate ventilation, respiratory protection as required, guards on stinger in place, welding screens in  place as needed. Position worker to keep fumes away from the breathing zone. Plan the route of weld leads to prevent trip hazards.",4,1]
["Wet Conditions","Rain, wet ground, puddles, placing concrete, washing down.","Slips, trips, falls.\nOccupational skin diseases.",3,3,"Inclement weather clothing, water proof gloves and shoes. Maintain walking working surfaces to keep as dry as possible. Cover work areas where possible.",3,1]
["Work at height","Persons working at height on scaffolding, aerial lifts, ladders or platforms.","Falls, Dropped Objects",4,4,"Personal Fall Arrest Systems, Guardrails, Fall protection work plan in place. Restricted access during height ops.\nSecure tools and materials effectively.\nTool Lanyards; Snow fence; Toeboards.",4,1]
["X-Rays","NDE testing of welds.","Hair loss. Nausea, vomiting, skin loss, cancer.",4,4,"Barricades, Communication, Radiography Procedures, Monitoring.",4,1]

{"sheet":"3.  Task Risk Assessment","index":3,"n_rows":100,"n_cols":10,"rows_kept":100,"merged":[[0,0,0,9],[5,1,5,6],[7,1,7,8],[10,0,11,0],[10,1,10,2],[10,3,10,5],[10,7,10,9]]}
["TASK RISK ASSESSMENT"]
[]
[]
["Job description:"]
["Sub contractor: "]
["Assessment team:",{"$nulls":6},"Approved:"]
[]
["Notes:","This is a pre-assessment based on known description of work. Revision to occur when reviewed with subcontractor. Please add any appropriate names to the assessment team above."]
[]
[null,"Date of Assessment: ",{"$nulls":4},"Due for Re-Assessment:  When reviewed with subcontractor, prior to work being started."]
["TASK","HAZARD",null,"INITIAL RISK",null,null,"CONTROLS","RESIDUAL RISK"]
[null,"Hazard Description","Hazard Effect","Hazard Severity","Likelihood ","Risk Rating","List Controls Required","Hazard Severity","Likelihood","Risk Rating"]
["List the basic tasks of your work scope from start to finish. Include site mobilization and demobilization. Leave several lines between each task.","Describe all hazards for each task based on observations and experience. \nNote: Additional hazards may be caused by interaction with other work.","Describe all effects that may be realized if hazard was to occur.","From Risk Rating Guide identify severity with no controls in place for each hazard.","From matrix identify likelihood with no controls  in place for each hazard.","Classify risk rating from matrix for each hazard","Describe fully all controls applicable for each hazard eg. If PPE is used it must be specifically described. If a control can only be verified by documentation then it must be available. All controls must reduce severity, likelihood or both","From matrix identify severity with controls in place for each hazard.","From matrix identify likelihood with controls  in place for each hazard.","Classify risk rating from matrix for each hazard"]
[null,null,{"$f":" IFERROR(VLOOKUP(B14,'2. HazardList'!$1:$1048576,3,FALSE), \"\")","v":""},{"$f":"IFERROR(VLOOKUP(B14,'2. HazardList'!$1:$1048576,4,FALSE),\"\")","v":""},{"$f":"IFERROR(VLOOKUP(B14,'2. HazardList'!$1:$1048576,5,FALSE), \"\")","v":""},{"$f":"IFERROR((D14*E14),\"\")","v":""},{"$f":" IFERROR(VLOOKUP(B14,'2. HazardList'!$1:$1048576,6,FALSE),\"\")","v":""},{"$f":"IFERROR(VLOOKUP(B14,'2. HazardList'!$1:$1048576,7,FALSE),\"\")","v":""},{"$f":"IFERROR(VLOOKUP(B14,'2. HazardList'!$1:$1048576,8,FALSE),\"\")","v":""},{"$f":"IFERROR((I14*H14),\"\")","v":""}]
[null,null,{"$f":" IFERROR(VLOOKUP(B15,'2. HazardList'!$1:$1048576,3,FALSE), \"\")","v":""},{"$f":"IFERROR(VLOOKUP(B15,'2. HazardList'!$1:$1048576,4,FALSE),\"\")","v":""},{"$f":"IFERROR(VLOOKUP(B15,'2. HazardList'!$1:$1048576,5,FALSE), \"\")","v":""},{"$f":"IFERROR((D15*E15),\"\")","v":""},{"$f":" IFERROR(VLOOKUP(B15,'2. HazardList'!$1:$1048576,6,FALSE),\"\")","v":""},{"$f":"IFERROR(VLOOKUP(B15,'2. HazardList'!$1:$1048576,7,FALSE),\"\")","v":""},{"$f":"IFERROR(VLOOKUP(B15,'2. HazardList'!$1:$1048576,8,FALSE),\"\")","v":""},{"$f":"IFERROR((I15*H15),\"\")","v":""}]
[null,null,{"$f":" IFERROR(VLOOKUP(B16,'2. HazardList'!$1:$1048576,3,FALSE), \"\")","v":""},{"$f":"IFERROR(VLOOKUP(B16,'2. HazardList'!$1:$1048576,4,FALSE),\"\")","v":""},{"$f":"IFERROR(VLOOKUP(B16,'2. HazardList'!$1:$1048576,5,FALSE), \"\")","v":""},"",{"$f":" IFERROR(VLOOKUP(B16,'2. HazardList'!$1:$1048576,6,FALSE),\"\")","v":""},{"$f":"IFERROR(VLOOKUP(B16,'2. HazardList'!$1:$1048576,7,FALSE),\"\")","v":""},{"$f":"IFERROR(VLOOKUP(B16,'2. HazardList'!$1:$1048576,8,FALSE),\"\")","v":""},""]
[null,null,{"$f":" IFERROR(VLOOKUP(B17,'2. HazardList'!$1:$1048576,3,FALSE), \"\")","v":""},{"$f":"IFERROR(VLOOKUP(B17,'2. HazardList'!$1:$1048576,4,FALSE),\"\")","v":""},{"$f":"IFERROR(VLOOKUP(B17,'2. HazardList'!$1:$1048576,5,FALSE), \"\")","v":""},"",{"$f":" IFERROR(VLOOKUP(B17,'2. HazardList'!$1:$1048576,6,FALSE),\"\")","v":""},{"$f":"IFERROR(VLOOKUP(B17,'2. HazardList'!$1:$1048576,7,FALSE),\"\")","v":""},{"$f":"IFERROR(VLOOKUP(B17,'2. HazardList'!$1:$1048576,8,FALSE),\"\")","v":""},""]
[null,null,{"$f":" IFERROR(VLOOKUP(B18,'2. HazardList'!$1:$1048576,3,FALSE), \"\")","v":""},{"$f":"IFERROR(VLOOKUP(B18,'2. HazardList'!$1:$1048576,4,FALSE),\"\")","v":""},{"$f":"IFERROR(VLOOKUP(B18,'2. HazardList'!$1:$1048576,5,FALSE), \"\")","v":""},"",{"$f":" IFERROR(VLOOKUP(B18,'2. HazardList'!$1:$1048576,6,FALSE),\"\")","v":""},{"$f":"IFERROR(VLOOKUP(B18,'2. HazardList'!$1:$1048576,7,FALSE),\"\")","v":""},{"$f":"IFERROR(VLOOKUP(B18,'2. HazardList'!$1:$1048576,8,FALSE),\"\")","v":""},""]
[null,null,{"$f":" IFERROR(VLOOKUP(B19,'2. HazardList'!$1:$1048576,3,FALSE), \"\")","v":""},{"$f":"IFERROR(VLOOKUP(B19,'2. HazardList'!$1:$1048576,4,FALSE),\"\")","v":""},{"$f":"IFERROR(VLOOKUP(B19,'2. HazardList'!$1:$1048576,5,FALSE), \"\")","v":""},"",{"$f":" IFERROR(VLOOKUP(B19,'2. HazardList'!$1:$1048576,6,FALSE),\"\")","v":""},{"$f":"IFERROR(VLOOKUP(B19,'2. HazardList'!$1:$1048576,7,FALSE),\"\")","v":""},{"$f":"IFERROR(VLOOKUP(B19,'2. HazardList'!$1:$1048576,8,FALSE),\"\")","v":""},""]
[null,null,{"$f":" IFERROR(VLOOKUP(B20,'2. HazardList'!$1:$1048576,3,FALSE), \"\")","v":""},{"$f":"IFERROR(VLOOKUP(B20,'2. HazardList'!$1:$1048576,4,FALSE),\"\")","v":""},{"$f":"IFERROR(VLOOKUP(B20,'2. HazardList'!$1:$1048576,5,FALSE), \"\")","v":""},"",{"$f":" IFERROR(VLOOKUP(B20,'2. HazardList'!$1:$1048576,6,FALSE),\"\")","v":""},{"$f":"IFERROR(VLOOKUP(B20,'2. HazardList'!$1:$1048576,7,FALSE),\"\")","v":""},{"$f":"IFERROR(VLOOKUP(B20,'2. HazardList'!$1:$1048576,8,FALSE),\"\")","v":""},""]
[null,null,{"$f":" IFERROR(VLOOKUP(B21,'2. HazardList'!$1:$1048576,3,FALSE), \"\")","v":""},{"$f":"IFERROR(VLOOKUP(B21,'2. HazardList'!$1:$1048576,4,FALSE),\"\")","v":""},{"$f":"IFERROR(VLOOKUP(B21,'2. HazardList'!$1:$1048576,5,FALSE), \"\")","v":""},"",{"$f":" IFERROR(VLOOKUP(B21,'2. HazardList'!$1:$1048576,6,FALSE),\"\")","v":""},{"$f":"IFERROR(VLOOKUP(B21,'2. HazardList'!$1:$1048576,7,FALSE),\"\")","v":""},{"$f":"IFERROR(VLOOKUP(B21,'2. HazardList'!$1:$1048576,8,FALSE),\"\")","v":""},""]
[null,null,{"$f":" IFERROR(VLOOKUP(B22,'2. HazardList'!$1:$1048576,3,FALSE), \"\")","v":""},{"$f":"IFERROR(VLOOKUP(B22,'2. HazardList'!$1:$1048576,4,FALSE),\"\")","v":""},{"$f":"IFERROR(VLOOKUP(B22,'2. HazardList'!$1:$1048576,5,FALSE), \"\")","v":""},"",{"$f":" IFERROR(VLOOKUP(B22,'2. HazardList'!$1:$1048576,6,FALSE),\"\")","v":""},{"$f":"IFERROR(VLOOKUP(B22,'2. HazardList'!$1:$1048576,7,FALSE),\"\")","v":""},{"$f":"IFERROR(VLOOKUP(B22,'2. HazardList'!$1:$1048576,8,FALSE),\"\")","v":""},""]
[null,null,{"$f":" IFERROR(VLOOKUP(B23,'2. HazardList'!$1:$1048576,3,FALSE), \"\")","v":""},{"$f":"IFERROR(VLOOKUP(B23,'2. HazardList'!$1:$1048576,4,FALSE),\"\")","v":""},{"$f":"IFERROR(VLOOKUP(B23,'2. HazardList'!$1:$1048576,5,FALSE), \"\")","v":""},"",{"$f":" IFERROR(VLOOKUP(B23,'2. HazardList'!$1:$1048576,6,FALSE),\"\")","v":""},{"$f":"IFERROR(VLOOKUP(B23,'2. HazardList'!$1:$1048576,7,FALSE),\"\")","v":""},{"$f":"IFERROR(VLOOKUP(B23,'2. HazardList'!$1:$1048576,8,FALSE),\"\")","v":""},""]
[null,null,{"$f":" IFERROR(VLOOKUP(B24,'2. HazardList'!$1:$1048576,3,FALSE), \"\")","v":""},{"$f":"IFERROR(VLOOKUP(B24,'2. HazardList'!$1:$1048576,4,FALSE),\"\")","v":""},{"$f":"IFERROR(VLOOKUP(B24,'2. HazardList'!$1:$1048576,5,FALSE), \"\")","v":""},"",{"$f":" IFERROR(VLOOKUP(B24,'2. HazardList'!$1:$1048576,6,FALSE),\"\")","v":""},{"$f":"IFERROR(VLOOKUP(B24,'2. HazardList'!$1:$1048576,7,FALSE),\"\")","v":""},{"$f":"IFERROR(VLOOKUP(B24,'2. HazardList'!$1:$1048576,8,FALSE),\"\")","v":""},""]
[null,null,{"$f":" IFERROR(VLOOKUP(B25,'2. HazardList'!$1:$1048576,3,FALSE), \"\")","v":""},{"$f":"IFERROR(VLOOKUP(B25,'2. HazardList'!$1:$1048576,4,FALSE),\"\")","v":""},{"$f":"IFERROR(VLOOKUP(B25,'2. HazardList'!$1:$1048576,5,FALSE), \"\")","v":""},"",{"$f":" IFERROR(VLOOKUP(B25,'2. HazardList'!$1:$1048576,6,FALSE),\"\")","v":""},{"$f":"IFERROR(VLOOKUP(B25,'2. HazardList'!$1:$1048576,7,FALSE),\"\")","v":""},{"$f":"IFERROR(VLOOKUP(B25,'2. HazardList'!$1:$1048576,8,FALSE),\"\")","v":""},""]
[null,null,{"$f":" IFERROR(VLOOKUP(B26,'2. HazardList'!$1:$1048576,3,FALSE), \"\")","v":""},{"$f":"IFERROR(VLOOKUP(B26,'2. HazardList'!$1:$1048576,4,FALSE),\"\")","v":""},{"$f":"IFERROR(VLOOKUP(B26,'2. HazardList'!$1:$1048576,5,FALSE), \"\")","v":""},"",{"$f":" IFERROR(VLOOKUP(B26,'2. HazardList'!$1:$1048576,6,FALSE),\"\")","v":""},{"$f":"IFERROR(VLOOKUP(B26,'2. HazardList'!$1:$1048576,7,FALSE),\"\")","v":""},{"$f":"IFERROR(VLOOKUP(B26,'2. HazardList'!$1:$1048576,8,FALSE),\"\")","v":""},""]
[null,null,{"$f":" IFERROR(VLOOKUP(B27,'2. HazardList'!$1:$1048576,3,FALSE), \"\")","v":""},{"$f":"IFERROR(VLOOKUP(B27,'2. HazardList'!$1:$1048576,4,FALSE),\"\")","v":""},{"$f":"IFERROR(VLOOKUP(B27,'2. HazardList'!$1:$1048576,5,FALSE), \"\")","v":""},"",{"$f":" IFERROR(VLOOKUP(B27,'2. HazardList'!$1:$1048576,6,FALSE),\"\")","v":""},{"$f":"IFERROR(VLOOKUP(B27,'2. HazardList'!$1:$1048576,7,FALSE),\"\")","v":""},{"$f":"IFERROR(VLOOKUP(B27,'2. HazardList'!$1:$1048576,8,FALSE),\"\")","v":""},""]
[null,null,{"$f":" IFERROR(VLOOKUP(B28,'2. HazardList'!$1:$1048576,3,FALSE), \"\")","v":""},{"$f":"IFERROR(VLOOKUP(B28,'2. HazardList'!$1:$1048576,4,FALSE),\"\")","v":""},{"$f":"IFERROR(VLOOKUP(B28,'2. HazardList'!$1:$1048576,5,FALSE), \"\")","v":""},"",{"$f":" IFERROR(VLOOKUP(B28,'2. HazardList'!$1:$1048576,6,FALSE),\"\")","v":""},{"$f":"IFERROR(VLOOKUP(B28,'2. HazardList'!$1:$1048576,7,FALSE),\"\")","v":""},{"$f":"IFERROR(VLOOKUP(B28,'2. HazardList'!$1:$1048576,8,FALSE),\"\")","v":""},""]
[null,null,{"$f":" IFERROR(VLOOKUP(B29,'2. HazardList'!$1:$1048576,3,FALSE), \"\")","v":""},{"$f":"IFERROR(VLOOKUP(B29,'2. HazardList'!$1:$1048576,4,FALSE),\"\")","v":""},{"$f":"IFERROR(VLOOKUP(B29,'2. HazardList'!$1:$1048576,5,FALSE), \"\")","v":""},"",{"$f":" IFERROR(VLOOKUP(B29,'2. HazardList'!$1:$1048576,6,FALSE),\"\")","v":""},{"$f":"IFERROR(VLOOKUP(B29,'2. HazardList'!$1:$1048576,7,FALSE),\"\")","v":""},{"$f":"IFERROR(VLOOKUP(B29,'2. HazardList'!$1:$1048576,8,FALSE),\"\")","v":""},""]
[null,null,{"$f":" IFERROR(VLOOKUP(B30,'2. HazardList'!$1:$1048576,3,FALSE), \"\")","v":""},{"$f":"IFERROR(VLOOKUP(B30,'2. HazardList'!$1:$1048576,4,FALSE),\"\")","v":""},{"$f":"IFERROR(VLOOKUP(B30,'2. HazardList'!$1:$1048576,5,FALSE), \"\")","v":""},"",{"$f":" IFERROR(VLOOKUP(B30,'2. HazardList'!$1:$1048576,6,FALSE),\"\")","v":""},{"$f":"IFERROR(VLOOKUP(B30,'2. HazardList'!$1:$1048576,7,FALSE),\"\")","v":""},{"$f":"IFERROR(VLOOKUP(B30,'2. HazardList'!$1:$1048576,8,FALSE),\"\")","v":""},""]
[null,null,{"$f":" IFERROR(VLOOKUP(B31,'2. HazardList'!$1:$1048576,3,FALSE), \"\")","v":""},{"$f":"IFERROR(VLOOKUP(B31,'2. HazardList'!$1:$1048576,4,FALSE),\"\")","v":""},{"$f":"IFERROR(VLOOKUP(B31,'2. HazardList'!$1:$1048576,5,FALSE), \"\")","v":""},"",{"$f":" IFERROR(VLOOKUP(B31,'2. HazardList'!$1:$1048576,6,FALSE),\"\")","v":""},{"$f":"IFERROR(VLOOKUP(B31,'2. HazardList'!$1:$1048576,7,FALSE),\"\")","v":""},{"$f":"IFERROR(VLOOKUP(B31,'2. HazardList'!$1:$1048576,8,FALSE),\"\")","v":""},""]
[null,null,{"$f":" IFERROR(VLOOKUP(B32,'2. HazardList'!$1:$1048576,3,FALSE), \"\")","v":""},{"$f":"IFERROR(VLOOKUP(B32,'2. HazardList'!$1:$1048576,4,FALSE),\"\")","v":""},{"$f":"IFERROR(VLOOKUP(B32,'2. HazardList'!$1:$1048576,5,FALSE), \"\")","v":""},"",{"$f":" IFERROR(VLOOKUP(B32,'2. HazardList'!$1:$1048576,6,FALSE),\"\")","v":""},{"$f":"IFERROR(VLOOKUP(B32,'2. HazardList'!$1:$1048576,7,FALSE),\"\")","v":""},{"$f":"IFERROR(VLOOKUP(B32,'2. HazardList'!$1:$1048576,8,FALSE),\"\")","v":""},""]
[null,null,{"$f":" IFERROR(VLOOKUP(B33,'2. HazardList'!$1:$1048576,3,FALSE), \"\")","v":""},{"$f":"IFERROR(VLOOKUP(B33,'2. HazardList'!$1:$1048576,4,FALSE),\"\")","v":""},{"$f":"IFERROR(VLOOKUP(B33,'2. HazardList'!$1:$1048576,5,FALSE), \"\")","v":""},"",{"$f":" IFERROR(VLOOKUP(B33,'2. HazardList'!$1:$1048576,6,FALSE),\"\")","v":""},{"$f":"IFERROR(VLOOKUP(B33,'2. HazardList'!$1:$1048576,7,FALSE),\"\")","v":""},{"$f":"IFERROR(VLOOKUP(B33,'2. HazardList'!$1:$1048576,8,FALSE),\"\")","v":""},""]
[null,null,{"$f":" IFERROR(VLOOKUP(B34,'2. HazardList'!$1:$1048576,3,FALSE), \"\")","v":""},{"$f":"IFERROR(VLOOKUP(B34,'2. HazardList'!$1:$1048576,4,FALSE),\"\")","v":""},{"$f":"IFERROR(VLOOKUP(B34,'2. HazardList'!$1:$1048576,5,FALSE), \"\")","v":""},"",{"$f":" IFERROR(VLOOKUP(B34,'2. HazardList'!$1:$1048576,6,FALSE),\"\")","v":""},{"$f":"IFERROR(VLOOKUP(B34,'2. HazardList'!$1:$1048576,7,FALSE),\"\")","v":""},{"$f":"IFERROR(VLOOKUP(B34,'2. HazardList'!$1:$1048576,8,FALSE),\"\")","v":""},""]
[null,null,{"$f":" IFERROR(VLOOKUP(B35,'2. HazardList'!$1:$1048576,3,FALSE), \"\")","v":""},{"$f":"IFERROR(VLOOKUP(B35,'2. HazardList'!$1:$1048576,4,FALSE),\"\")","v":""},{"$f":"IFERROR(VLOOKUP(B35,'2. HazardList'!$1:$1048576,5,FALSE), \"\")","v":""},"",{"$f":" IFERROR(VLOOKUP(B35,'2. HazardList'!$1:$1048576,6,FALSE),\"\")","v":""},{"$f":"IFERROR(VLOOKUP(B35,'2. HazardList'!$1:$1048576,7,FALSE),\"\")","v":""},{"$f":"IFERROR(VLOOKUP(B35,'2. HazardList'!$1:$1048576,8,FALSE),\"\")","v":""},""]
[null,null,{"$f":" IFERROR(VLOOKUP(B36,'2. HazardList'!$1:$1048576,3,FALSE), \"\")","v":""},{"$f":"IFERROR(VLOOKUP(B36,'2. HazardList'!$1:$1048576,4,FALSE),\"\")","v":""},{"$f":"IFERROR(VLOOKUP(B36,'2. HazardList'!$1:$1048576,5,FALSE), \"\")","v":""},"",{"$f":" IFERROR(VLOOKUP(B36,'2. HazardList'!$1:$1048576,6,FALSE),\"\")","v":""},{"$f":"IFERROR(VLOOKUP(B36,'2. HazardList'!$1:$1048576,7,FALSE),\"\")","v":""},{"$f":"IFERROR(VLOOKUP(B36,'2. HazardList'!$1:$1048576,8,FALSE),\"\")","v":""},""]
[null,null,{"$f":" IFERROR(VLOOKUP(B37,'2. HazardList'!$1:$1048576,3,FALSE), \"\")","v":""},{"$f":"IFERROR(VLOOKUP(B37,'2. HazardList'!$1:$1048576,4,FALSE),\"\")","v":""},{"$f":"IFERROR(VLOOKUP(B37,'2. HazardList'!$1:$1048576,5,FALSE), \"\")","v":""},"",{"$f":" IFERROR(VLOOKUP(B37,'2. HazardList'!$1:$1048576,6,FALSE),\"\")","v":""},{"$f":"IFERROR(VLOOKUP(B37,'2. HazardList'!$1:$1048576,7,FALSE),\"\")","v":""},{"$f":"IFERROR(VLOOKUP(B37,'2. HazardList'!$1:$1048576,8,FALSE),\"\")","v":""},""]
[null,null,{"$f":" IFERROR(VLOOKUP(B38,'2. HazardList'!$1:$1048576,3,FALSE), \"\")","v":""},{"$f":"IFERROR(VLOOKUP(B38,'2. HazardList'!$1:$1048576,4,FALSE),\"\")","v":""},{"$f":"IFERROR(VLOOKUP(B38,'2. HazardList'!$1:$1048576,5,FALSE), \"\")","v":""},"",{"$f":" IFERROR(VLOOKUP(B38,'2. HazardList'!$1:$1048576,6,FALSE),\"\")","v":""},{"$f":"IFERROR(VLOOKUP(B38,'2. HazardList'!$1:$1048576,7,FALSE),\"\")","v":""},{"$f":"IFERROR(VLOOKUP(B38,'2. HazardList'!$1:$1048576,8,FALSE),\"\")","v":""},""]
[null,null,{"$f":" IFERROR(VLOOKUP(B39,'2. HazardList'!$1:$1048576,3,FALSE), \"\")","v":""},{"$f":"IFERROR(VLOOKUP(B39,'2. HazardList'!$1:$1048576,4,FALSE),\"\")","v":""},{"$f":"IFERROR(VLOOKUP(B39,'2. HazardList'!$1:$1048576,5,FALSE), \"\")","v":""},"",{"$f":" IFERROR(VLOOKUP(B39,'2. HazardList'!$1:$1048576,6,FALSE),\"\")","v":""},{"$f":"IFERROR(VLOOKUP(B39,'2. HazardList'!$1:$1048576,7,FALSE),\"\")","v":""},{"$f":"IFERROR(VLOOKUP(B39,'2. HazardList'!$1:$1048576,8,FALSE),\"\")","v":""},""]
[null,null,{"$f":" IFERROR(VLOOKUP(B40,'2. HazardList'!$1:$1048576,3,FALSE), \"\")","v":""},{"$f":"IFERROR(VLOOKUP(B40,'2. HazardList'!$1:$1048576,4,FALSE),\"\")","v":""},{"$f":"IFERROR(VLOOKUP(B40,'2. HazardList'!$1:$1048576,5,FALSE), \"\")","v":""},"",{"$f":" IFERROR(VLOOKUP(B40,'2. HazardList'!$1:$1048576,6,FALSE),\"\")","v":""},{"$f":"IFERROR(VLOOKUP(B40,'2. HazardList'!$1:$1048576,7,FALSE),\"\")","v":""},{"$f":"IFERROR(VLOOKUP(B40,'2. HazardList'!$1:$1048576,8,FALSE),\"\")","v":""},""]
[null,null,{"$f":" IFERROR(VLOOKUP(B41,'2. HazardList'!$1:$1048576,3,FALSE), \"\")","v":""},{"$f":"IFERROR(VLOOKUP(B41,'2. HazardList'!$1:$1048576,4,FALSE),\"\")","v":""},{"$f":"IFERROR(VLOOKUP(B41,'2. HazardList'!$1:$1048576,5,FALSE), \"\")","v":""},"",{"$f":" IFERROR(VLOOKUP(B41,'2. HazardList'!$1:$1048576,6,FALSE),\"\")","v":""},{"$f":"IFERROR(VLOOKUP(B41,'2. HazardList'!$1:$1048576,7,FALSE),\"\")","v":""},{"$f":"IFERROR(VLOOKUP(B41,'2. HazardList'!$1:$1048576,8,FALSE),\"\")","v":""},""]
[null,null,{"$f":" IFERROR(VLOOKUP(B42,'2. HazardList'!$1:$1048576,3,FALSE), \"\")","v":""},{"$f":"IFERROR(VLOOKUP(B42,'2. HazardList'!$1:$1048576,4,FALSE),\"\")","v":""},{"$f":"IFERROR(VLOOKUP(B42,'2. HazardList'!$1:$1048576,5,FALSE), \"\")","v":""},"",{"$f":" IFERROR(VLOOKUP(B42,'2. HazardList'!$1:$1048576,6,FALSE),\"\")","v":""},{"$f":"IFERROR(VLOOKUP(B42,'2. HazardList'!$1:$1048576,7,FALSE),\"\")","v":""},{"$f":"IFERROR(VLOOKUP(B42,'2. HazardList'!$1:$1048576,8,FALSE),\"\")","v":""},""]
[null,null,{"$f":" IFERROR(VLOOKUP(B43,'2. HazardList'!$1:$1048576,3,FALSE), \"\")","v":""},{"$f":"IFERROR(VLOOKUP(B43,'2. HazardList'!$1:$1048576,4,FALSE),\"\")","v":""},{"$f":"IFERROR(VLOOKUP(B43,'2. HazardList'!$1:$1048576,5,FALSE), \"\")","v":""},"",{"$f":" IFERROR(VLOOKUP(B43,'2. HazardList'!$1:$1048576,6,FALSE),\"\")","v":""},{"$f":"IFERROR(VLOOKUP(B43,'2. HazardList'!$1:$1048576,7,FALSE),\"\")","v":""},{"$f":"IFERROR(VLOOKUP(B43,'2. HazardList'!$1:$1048576,8,FALSE),\"\")","v":""},""]
[null,null,{"$f":" IFERROR(VLOOKUP(B44,'2. HazardList'!$1:$1048576,3,FALSE), \"\")","v":""},{"$f":"IFERROR(VLOOKUP(B44,'2. HazardList'!$1:$1048576,4,FALSE),\"\")","v":""},{"$f":"IFERROR(VLOOKUP(B44,'2. HazardList'!$1:$1048576,5,FALSE), \"\")","v":""},"",{"$f":" IFERROR(VLOOKUP(B44,'2. HazardList'!$1:$1048576,6,FALSE),\"\")","v":""},{"$f":"IFERROR(VLOOKUP(B44,'2. HazardList'!$1:$1048576,7,FALSE),\"\")","v":""},{"$f":"IFERROR(VLOOKUP(B44,'2. HazardList'!$1:$1048576,8,FALSE),\"\")","v":""},""]
[null,null,{"$f":" IFERROR(VLOOKUP(B45,'2. HazardList'!$1:$1048576,3,FALSE), \"\")","v":""},{"$f":"IFERROR(VLOOKUP(B45,'2. HazardList'!$1:$1048576,4,FALSE),\"\")","v":""},{"$f":"IFERROR(VLOOKUP(B45,'2. HazardList'!$1:$1048576,5,FALSE), \"\")","v":""},"",{"$f":" IFERROR(VLOOKUP(B45,'2. HazardList'!$1:$1048576,6,FALSE),\"\")","v":""},{"$f":"IFERROR(VLOOKUP(B45,'2. HazardList'!$1:$1048576,7,FALSE),\"\")","v":""},{"$f":"IFERROR(VLOOKUP(B45,'2. HazardList'!$1:$1048576,8,FALSE),\"\")","v":""},""]
[null,null,{"$f":" IFERROR(VLOOKUP(B46,'2. HazardList'!$1:$1048576,3,FALSE), \"\")","v":""},{"$f":"IFERROR(VLOOKUP(B46,'2. HazardList'!$1:$1048576,4,FALSE),\"\")","v":""},{"$f":"IFERROR(VLOOKUP(B46,'2. HazardList'!$1:$1048576,5,FALSE), \"\")","v":""},"",{"$f":" IFERROR(VLOOKUP(B46,'2. HazardList'!$1:$1048576,6,FALSE),\"\")","v":""},{"$f":"IFERROR(VLOOKUP(B46,'2. HazardList'!$1:$1048576,7,FALSE),\"\")","v":""},{"$f":"IFERROR(VLOOKUP(B46,'2. HazardList'!$1:$1048576,8,FALSE),\"\")","v":""},""]
[null,null,{"$f":" IFERROR(VLOOKUP(B47,'2. HazardList'!$1:$1048576,3,FALSE), \"\")","v":""},{"$f":"IFERROR(VLOOKUP(B47,'2. HazardList'!$1:$1048576,4,FALSE),\"\")","v":""},{"$f":"IFERROR(VLOOKUP(B47,'2. HazardList'!$1:$1048576,5,FALSE), \"\")","v":""},"",{"$f":" IFERROR(VLOOKUP(B47,'2. HazardList'!$1:$1048576,6,FALSE),\"\")","v":""},{"$f":"IFERROR(VLOOKUP(B47,'2. HazardList'!$1:$1048576,7,FALSE),\"\")","v":""},{"$f":"IFERROR(VLOOKUP(B47,'2. HazardList'!$1:$1048576,8,FALSE),\"\")","v":""},""]
[null,null,{"$f":" IFERROR(VLOOKUP(B48,'2. HazardList'!$1:$1048576,3,FALSE), \"\")","v":""},{"$f":"IFERROR(VLOOKUP(B48,'2. HazardList'!$1:$1048576,4,FALSE),\"\")","v":""},{"$f":"IFERROR(VLOOKUP(B48,'2. HazardList'!$1:$1048576,5,FALSE), \"\")","v":""},"",{"$f":" IFERROR(VLOOKUP(B48,'2. HazardList'!$1:$1048576,6,FALSE),\"\")","v":""},{"$f":"IFERROR(VLOOKUP(B48,'2. HazardList'!$1:$1048576,7,FALSE),\"\")","v":""},{"$f":"IFERROR(VLOOKUP(B48,'2. HazardList'!$1:$1048576,8,FALSE),\"\")","v":""},""]
[null,null,{"$f":" IFERROR(VLOOKUP(B49,'2. HazardList'!$1:$1048576,3,FALSE), \"\")","v":""},{"$f":"IFERROR(VLOOKUP(B49,'2. HazardList'!$1:$1048576,4,FALSE),\"\")","v":""},{"$f":"IFERROR(VLOOKUP(B49,'2. HazardList'!$1:$1048576,5,FALSE), \"\")","v":""},"",{"$f":" IFERROR(VLOOKUP(B49,'2. HazardList'!$1:$1048576,6,FALSE),\"\")","v":""},{"$f":"IFERROR(VLOOKUP(B49,'2. HazardList'!$1:$1048576,7,FALSE),\"\")","v":""},{"$f":"IFERROR(VLOOKUP(B49,'2. HazardList'!$1:$1048576,8,FALSE),\"\")","v":""},""]
[null,null,{"$f":" IFERROR(VLOOKUP(B50,'2. HazardList'!$1:$1048576,3,FALSE), \"\")","v":""},{"$f":"IFERROR(VLOOKUP(B50,'2. HazardList'!$1:$1048576,4,FALSE),\"\")","v":""},{"$f":"IFERROR(VLOOKUP(B50,'2. HazardList'!$1:$1048576,5,FALSE), \"\")","v":""},"",{"$f":" IFERROR(VLOOKUP(B50,'2. HazardList'!$1:$1048576,6,FALSE),\"\")","v":""},{"$f":"IFERROR(VLOOKUP(B50,'2. HazardList'!$1:$1048576,7,FALSE),\"\")","v":""},{"$f":"IFERROR(VLOOKUP(B50,'2. HazardList'!$1:$1048576,8,FALSE),\"\")","v":""},""]
[null,null,{"$f":" IFERROR(VLOOKUP(B51,'2. HazardList'!$1:$1048576,3,FALSE), \"\")","v":""},{"$f":"IFERROR(VLOOKUP(B51,'2. HazardList'!$1:$1048576,4,FALSE),\"\")","v":""},{"$f":"IFERROR(VLOOKUP(B51,'2. HazardList'!$1:$1048576,5,FALSE), \"\")","v":""},"",{"$f":" IFERROR(VLOOKUP(B51,'2. HazardList'!$1:$1048576,6,FALSE),\"\")","v":""},{"$f":"IFERROR(VLOOKUP(B51,'2. HazardList'!$1:$1048576,7,FALSE),\"\")","v":""},{"$f":"IFERROR(VLOOKUP(B51,'2. HazardList'!$1:$1048576,8,FALSE),\"\")","v":""},""]
[null,null,{"$f":" IFERROR(VLOOKUP(B52,'2. HazardList'!$1:$1048576,3,FALSE), \"\")","v":""},{"$f":"IFERROR(VLOOKUP(B52,'2. HazardList'!$1:$1048576,4,FALSE),\"\")","v":""},{"$f":"IFERROR(VLOOKUP(B52,'2. HazardList'!$1:$1048576,5,FALSE), \"\")","v":""},"",{"$f":" IFERROR(VLOOKUP(B52,'2. HazardList'!$1:$1048576,6,FALSE),\"\")","v":""},{"$f":"IFERROR(VLOOKUP(B52,'2. HazardList'!$1:$1048576,7,FALSE),\"\")","v":""},{"$f":"IFERROR(VLOOKUP(B52,'2. HazardList'!$1:$1048576,8,FALSE),\"\")","v":""},""]
[null,null,{"$f":" IFERROR(VLOOKUP(B53,'2. HazardList'!$1:$1048576,3,FALSE), \"\")","v":""},{"$f":"IFERROR(VLOOKUP(B53,'2. HazardList'!$1:$1048576,4,FALSE),\"\")","v":""},{"$f":"IFERROR(VLOOKUP(B53,'2. HazardList'!$1:$1048576,5,FALSE), \"\")","v":""},"",{"$f":" IFERROR(VLOOKUP(B53,'2. HazardList'!$1:$1048576,6,FALSE),\"\")","v":""},{"$f":"IFERROR(VLOOKUP(B53,'2. HazardList'!$1:$1048576,7,FALSE),\"\")","v":""},{"$f":"IFERROR(VLOOKUP(B53,'2. HazardList'!$1:$1048576,8,FALSE),\"\")","v":""},""]
[null,null,{"$f":" IFERROR(VLOOKUP(B54,'2. HazardList'!$1:$1048576,3,FALSE), \"\")","v":""},{"$f":"IFERROR(VLOOKUP(B54,'2. HazardList'!$1:$1048576,4,FALSE),\"\")","v":""},{"$f":"IFERROR(VLOOKUP(B54,'2. HazardList'!$1:$1048576,5,FALSE), \"\")","v":""},"",{"$f":" IFERROR(VLOOKUP(B54,'2. HazardList'!$1:$1048576,6,FALSE),\"\")","v":""},{"$f":"IFERROR(VLOOKUP(B54,'2. HazardList'!$1:$1048576,7,FALSE),\"\")","v":""},{"$f":"IFERROR(VLOOKUP(B54,'2. HazardList'!$1:$1048576,8,FALSE),\"\")","v":""},""]
[null,null,{"$f":" IFERROR(VLOOKUP(B55,'2. HazardList'!$1:$1048576,3,FALSE), \"\")","v":""},{"$f":"IFERROR(VLOOKUP(B55,'2. HazardList'!$1:$1048576,4,FALSE),\"\")","v":""},{"$f":"IFERROR(VLOOKUP(B55,'2. HazardList'!$1:$1048576,5,FALSE), \"\")","v":""},"",{"$f":" IFERROR(VLOOKUP(B55,'2. HazardList'!$1:$1048576,6,FALSE),\"\")","v":""},{"$f":"IFERROR(VLOOKUP(B55,'2. HazardList'!$1:$1048576,7,FALSE),\"\")","v":""},{"$f":"IFERROR(VLOOKUP(B55,'2. HazardList'!$1:$1048576,8,FALSE),\"\")","v":""},""]
[null,null,{"$f":" IFERROR(VLOOKUP(B56,'2. HazardList'!$1:$1048576,3,FALSE), \"\")","v":""},{"$f":"IFERROR(VLOOKUP(B56,'2. HazardList'!$1:$1048576,4,FALSE),\"\")","v":""},{"$f":"IFERROR(VLOOKUP(B56,'2. HazardList'!$1:$1048576,5,FALSE), \"\")","v":""},"",{"$f":" IFERROR(VLOOKUP(B56,'2. HazardList'!$1:$1048576,6,FALSE),\"\")","v":""},{"$f":"IFERROR(VLOOKUP(B56,'2. HazardList'!$1:$1048576,7,FALSE),\"\")","v":""},{"$f":"IFERROR(VLOOKUP(B56,'2. HazardList'!$1:$1048576,8,FALSE),\"\")","v":""},""]
[null,null,{"$f":" IFERROR(VLOOKUP(B57,'2. HazardList'!$1:$1048576,3,FALSE), \"\")","v":""},{"$f":"IFERROR(VLOOKUP(B57,'2. HazardList'!$1:$1048576,4,FALSE),\"\")","v":""},{"$f":"IFERROR(VLOOKUP(B57,'2. HazardList'!$1:$1048576,5,FALSE), \"\")","v":""},"",{"$f":" IFERROR(VLOOKUP(B57,'2. HazardList'!$1:$1048576,6,FALSE),\"\")","v":""},{"$f":"IFERROR(VLOOKUP(B57,'2. HazardList'!$1:$1048576,7,FALSE),\"\")","v":""},{"$f":"IFERROR(VLOOKUP(B57,'2. HazardList'!$1:$1048576,8,FALSE),\"\")","v":""},""]
[null,null,{"$f":" IFERROR(VLOOKUP(B58,'2. HazardList'!$1:$1048576,3,FALSE), \"\")","v":""},{"$f":"IFERROR(VLOOKUP(B58,'2. HazardList'!$1:$1048576,4,FALSE),\"\")","v":""},{"$f":"IFERROR(VLOOKUP(B58,'2. HazardList'!$1:$1048576,5,FALSE), \"\")","v":""},"",{"$f":" IFERROR(VLOOKUP(B58,'2. HazardList'!$1:$1048576,6,FALSE),\"\")","v":""},{"$f":"IFERROR(VLOOKUP(B58,'2. HazardList'!$1:$1048576,7,FALSE),\"\")","v":""},{"$f":"IFERROR(VLOOKUP(B58,'2. HazardList'!$1:$1048576,8,FALSE),\"\")","v":""},""]
[null,null,{"$f":" IFERROR(VLOOKUP(B59,'2. HazardList'!$1:$1048576,3,FALSE), \"\")","v":""},{"$f":"IFERROR(VLOOKUP(B59,'2. HazardList'!$1:$1048576,4,FALSE),\"\")","v":""},{"$f":"IFERROR(VLOOKUP(B59,'2. HazardList'!$1:$1048576,5,FALSE), \"\")","v":""},"",{"$f":" IFERROR(VLOOKUP(B59,'2. HazardList'!$1:$1048576,6,FALSE),\"\")","v":""},{"$f":"IFERROR(VLOOKUP(B59,'2. HazardList'!$1:$1048576,7,FALSE),\"\")","v":""},{"$f":"IFERROR(VLOOKUP(B59,'2. HazardList'!$1:$1048576,8,FALSE),\"\")","v":""},""]
[null,null,{"$f":" IFERROR(VLOOKUP(B60,'2. HazardList'!$1:$1048576,3,FALSE), \"\")","v":""},{"$f":"IFERROR(VLOOKUP(B60,'2. HazardList'!$1:$1048576,4,FALSE),\"\")","v":""},{"$f":"IFERROR(VLOOKUP(B60,'2. HazardList'!$1:$1048576,5,FALSE), \"\")","v":""},"",{"$f":" IFERROR(VLOOKUP(B60,'2. HazardList'!$1:$1048576,6,FALSE),\"\")","v":""},{"$f":"IFERROR(VLOOKUP(B60,'2. HazardList'!$1:$1048576,7,FALSE),\"\")","v":""},{"$f":"IFERROR(VLOOKUP(B60,'2. HazardList'!$1:$1048576,8,FALSE),\"\")","v":""},""]
[null,null,{"$f":" IFERROR(VLOOKUP(B61,'2. HazardList'!$1:$1048576,3,FALSE), \"\")","v":""},{"$f":"IFERROR(VLOOKUP(B61,'2. HazardList'!$1:$1048576,4,FALSE),\"\")","v":""},{"$f":"IFERROR(VLOOKUP(B61,'2. HazardList'!$1:$1048576,5,FALSE), \"\")","v":""},"",{"$f":" IFERROR(VLOOKUP(B61,'2. HazardList'!$1:$1048576,6,FALSE),\"\")","v":""},{"$f":"IFERROR(VLOOKUP(B61,'2. HazardList'!$1:$1048576,7,FALSE),\"\")","v":""},{"$f":"IFERROR(VLOOKUP(B61,'2. HazardList'!$1:$1048576,8,FALSE),\"\")","v":""},""]
[null,null,{"$f":" IFERROR(VLOOKUP(B62,'2. HazardList'!$1:$1048576,3,FALSE), \"\")","v":""},{"$f":"IFERROR(VLOOKUP(B62,'2. HazardList'!$1:$1048576,4,FALSE),\"\")","v":""},{"$f":"IFERROR(VLOOKUP(B62,'2. HazardList'!$1:$1048576,5,FALSE), \"\")","v":""},"",{"$f":" IFERROR(VLOOKUP(B62,'2. HazardList'!$1:$1048576,6,FALSE),\"\")","v":""},{"$f":"IFERROR(VLOOKUP(B62,'2. HazardList'!$1:$1048576,7,FALSE),\"\")","v":""},{"$f":"IFERROR(VLOOKUP(B62,'2. HazardList'!$1:$1048576,8,FALSE),\"\")","v":""},""]
[null,null,{"$f":" IFERROR(VLOOKUP(B63,'2. HazardList'!$1:$1048576,3,FALSE), \"\")","v":""},{"$f":"IFERROR(VLOOKUP(B63,'2. HazardList'!$1:$1048576,4,FALSE),\"\")","v":""},{"$f":"IFERROR(VLOOKUP(B63,'2. HazardList'!$1:$1048576,5,FALSE), \"\")","v":""},"",{"$f":" IFERROR(VLOOKUP(B63,'2. HazardList'!$1:$1048576,6,FALSE),\"\")","v":""},{"$f":"IFERROR(VLOOKUP(B63,'2. HazardList'!$1:$1048576,7,FALSE),\"\")","v":""},{"$f":"IFERROR(VLOOKUP(B63,'2. HazardList'!$1:$1048576,8,FALSE),\"\")","v":""},""]
[null,null,{"$f":" IFERROR(VLOOKUP(B64,'2. HazardList'!$1:$1048576,3,FALSE), \"\")","v":""},{"$f":"IFERROR(VLOOKUP(B64,'2. HazardList'!$1:$1048576,4,FALSE),\"\")","v":""},{"$f":"IFERROR(VLOOKUP(B64,'2. HazardList'!$1:$1048576,5,FALSE), \"\")","v":""},"",{"$f":" IFERROR(VLOOKUP(B64,'2. HazardList'!$1:$1048576,6,FALSE),\"\")","v":""},{"$f":"IFERROR(VLOOKUP(B64,'2. HazardList'!$1:$1048576,7,FALSE),\"\")","v":""},{"$f":"IFERROR(VLOOKUP(B64,'2. HazardList'!$1:$1048576,8,FALSE),\"\")","v":""},""]
[null,null,{"$f":" IFERROR(VLOOKUP(B65,'2. HazardList'!$1:$1048576,3,FALSE), \"\")","v":""},{"$f":"IFERROR(VLOOKUP(B65,'2. HazardList'!$1:$1048576,4,FALSE),\"\")","v":""},{"$f":"IFERROR(VLOOKUP(B65,'2. HazardList'!$1:$1048576,5,FALSE), \"\")","v":""},"",{"$f":" IFERROR(VLOOKUP(B65,'2. HazardList'!$1:$1048576,6,FALSE),\"\")","v":""},{"$f":"IFERROR(VLOOKUP(B65,'2. HazardList'!$1:$1048576,7,FALSE),\"\")","v":""},{"$f":"IFERROR(VLOOKUP(B65,'2. HazardList'!$1:$1048576,8,FALSE),\"\")","v":""},""]
[null,null,{"$f":" IFERROR(VLOOKUP(B66,'2. HazardList'!$1:$1048576,3,FALSE), \"\")","v":""},{"$f":"IFERROR(VLOOKUP(B66,'2. HazardList'!$1:$1048576,4,FALSE),\"\")","v":""},{"$f":"IFERROR(VLOOKUP(B66,'2. HazardList'!$1:$1048576,5,FALSE), \"\")","v":""},"",{"$f":" IFERROR(VLOOKUP(B66,'2. HazardList'!$1:$1048576,6,FALSE),\"\")","v":""},{"$f":"IFERROR(VLOOKUP(B66,'2. HazardList'!$1:$1048576,7,FALSE),\"\")","v":""},{"$f":"IFERROR(VLOOKUP(B66,'2. HazardList'!$1:$1048576,8,FALSE),\"\")","v":""},""]
[null,null,{"$f":" IFERROR(VLOOKUP(B67,'2. HazardList'!$1:$1048576,3,FALSE), \"\")","v":""},{"$f":"IFERROR(VLOOKUP(B67,'2. HazardList'!$1:$1048576,4,FALSE),\"\")","v":""},{"$f":"IFERROR(VLOOKUP(B67,'2. HazardList'!$1:$1048576,5,FALSE), \"\")","v":""},"",{"$f":" IFERROR(VLOOKUP(B67,'2. HazardList'!$1:$1048576,6,FALSE),\"\")","v":""},{"$f":"IFERROR(VLOOKUP(B67,'2. HazardList'!$1:$1048576,7,FALSE),\"\")","v":""},{"$f":"IFERROR(VLOOKUP(B67,'2. HazardList'!$1:$1048576,8,FALSE),\"\")","v":""},""]
[null,null,{"$f":" IFERROR(VLOOKUP(B68,'2. HazardList'!$1:$1048576,3,FALSE), \"\")","v":""},{"$f":"IFERROR(VLOOKUP(B68,'2. HazardList'!$1:$1048576,4,FALSE),\"\")","v":""},{"$f":"IFERROR(VLOOKUP(B68,'2. HazardList'!$1:$1048576,5,FALSE), \"\")","v":""},"",{"$f":" IFERROR(VLOOKUP(B68,'2. HazardList'!$1:$1048576,6,FALSE),\"\")","v":""},{"$f":"IFERROR(VLOOKUP(B68,'2. HazardList'!$1:$1048576,7,FALSE),\"\")","v":""},{"$f":"IFERROR(VLOOKUP(B68,'2. HazardList'!$1:$1048576,8,FALSE),\"\")","v":""},""]
[null,null,{"$f":" IFERROR(VLOOKUP(B69,'2. HazardList'!$1:$1048576,3,FALSE), \"\")","v":""},{"$f":"IFERROR(VLOOKUP(B69,'2. HazardList'!$1:$1048576,4,FALSE),\"\")","v":""},{"$f":"IFERROR(VLOOKUP(B69,'2. HazardList'!$1:$1048576,5,FALSE), \"\")","v":""},"",{"$f":" IFERROR(VLOOKUP(B69,'2. HazardList'!$1:$1048576,6,FALSE),\"\")","v":""},{"$f":"IFERROR(VLOOKUP(B69,'2. HazardList'!$1:$1048576,7,FALSE),\"\")","v":""},{"$f":"IFERROR(VLOOKUP(B69,'2. HazardList'!$1:$1048576,8,FALSE),\"\")","v":""},""]
[null,null,{"$f":" IFERROR(VLOOKUP(B70,'2. HazardList'!$1:$1048576,3,FALSE), \"\")","v":""},{"$f":"IFERROR(VLOOKUP(B70,'2. HazardList'!$1:$1048576,4,FALSE),\"\")","v":""},{"$f":"IFERROR(VLOOKUP(B70,'2. HazardList'!$1:$1048576,5,FALSE), \"\")","v":""},"",{"$f":" IFERROR(VLOOKUP(B70,'2. HazardList'!$1:$1048576,6,FALSE),\"\")","v":""},{"$f":"IFERROR(VLOOKUP(B70,'2. HazardList'!$1:$1048576,7,FALSE),\"\")","v":""},{"$f":"IFERROR(VLOOKUP(B70,'2. HazardList'!$1:$1048576,8,FALSE),\"\")","v":""},""]
[null,null,{"$f":" IFERROR(VLOOKUP(B71,'2. HazardList'!$1:$1048576,3,FALSE), \"\")","v":""},{"$f":"IFERROR(VLOOKUP(B71,'2. HazardList'!$1:$1048576,4,FALSE),\"\")","v":""},{"$f":"IFERROR(VLOOKUP(B71,'2. HazardList'!$1:$1048576,5,FALSE), \"\")","v":""},"",{"$f":" IFERROR(VLOOKUP(B71,'2. HazardList'!$1:$1048576,6,FALSE),\"\")","v":""},{"$f":"IFERROR(VLOOKUP(B71,'2. HazardList'!$1:$1048576,7,FALSE),\"\")","v":""},{"$f":"IFERROR(VLOOKUP(B71,'2. HazardList'!$1:$1048576,8,FALSE),\"\")","v":""},""]
[null,null,{"$f":" IFERROR(VLOOKUP(B72,'2. HazardList'!$1:$1048576,3,FALSE), \"\")","v":""},{"$f":"IFERROR(VLOOKUP(B72,'2. HazardList'!$1:$1048576,4,FALSE),\"\")","v":""},{"$f":"IFERROR(VLOOKUP(B72,'2. HazardList'!$1:$1048576,5,FALSE), \"\")","v":""},"",{"$f":" IFERROR(VLOOKUP(B72,'2. HazardList'!$1:$1048576,6,FALSE),\"\")","v":""},{"$f":"IFERROR(VLOOKUP(B72,'2. HazardList'!$1:$1048576,7,FALSE),\"\")","v":""},{"$f":"IFERROR(VLOOKUP(B72,'2. HazardList'!$1:$1048576,8,FALSE),\"\")","v":""},""]
[null,null,{"$f":" IFERROR(VLOOKUP(B73,'2. HazardList'!$1:$1048576,3,FALSE), \"\")","v":""},{"$f":"IFERROR(VLOOKUP(B73,'2. HazardList'!$1:$1048576,4,FALSE),\"\")","v":""},{"$f":"IFERROR(VLOOKUP(B73,'2. HazardList'!$1:$1048576,5,FALSE), \"\")","v":""},"",{"$f":" IFERROR(VLOOKUP(B73,'2. HazardList'!$1:$1048576,6,FALSE),\"\")","v":""},{"$f":"IFERROR(VLOOKUP(B73,'2. HazardList'!$1:$1048576,7,FALSE),\"\")","v":""},{"$f":"IFERROR(VLOOKUP(B73,'2. HazardList'!$1:$1048576,8,FALSE),\"\")","v":""},""]
[null,null,{"$f":" IFERROR(VLOOKUP(B74,'2. HazardList'!$1:$1048576,3,FALSE), \"\")","v":""},{"$f":"IFERROR(VLOOKUP(B74,'2. HazardList'!$1:$1048576,4,FALSE),\"\")","v":""},{"$f":"IFERROR(VLOOKUP(B74,'2. HazardList'!$1:$1048576,5,FALSE), \"\")","v":""},"",{"$f":" IFERROR(VLOOKUP(B74,'2. HazardList'!$1:$1048576,6,FALSE),\"\")","v":""},{"$f":"IFERROR(VLOOKUP(B74,'2. HazardList'!$1:$1048576,7,FALSE),\"\")","v":""},{"$f":"IFERROR(VLOOKUP(B74,'2. HazardList'!$1:$1048576,8,FALSE),\"\")","v":""},""]
[null,null,{"$f":" IFERROR(VLOOKUP(B75,'2. HazardList'!$1:$1048576,3,FALSE), \"\")","v":""},{"$f":"IFERROR(VLOOKUP(B75,'2. HazardList'!$1:$1048576,4,FALSE),\"\")","v":""},{"$f":"IFERROR(VLOOKUP(B75,'2. HazardList'!$1:$1048576,5,FALSE), \"\")","v":""},"",{"$f":" IFERROR(VLOOKUP(B75,'2. HazardList'!$1:$1048576,6,FALSE),\"\")","v":""},{"$f":"IFERROR(VLOOKUP(B75,'2. HazardList'!$1:$1048576,7,FALSE),\"\")","v":""},{"$f":"IFERROR(VLOOKUP(B75,'2. HazardList'!$1:$1048576,8,FALSE),\"\")","v":""},""]
[null,null,{"$f":" IFERROR(VLOOKUP(B76,'2. HazardList'!$1:$1048576,3,FALSE), \"\")","v":""},{"$f":"IFERROR(VLOOKUP(B76,'2. HazardList'!$1:$1048576,4,FALSE),\"\")","v":""},{"$f":"IFERROR(VLOOKUP(B76,'2. HazardList'!$1:$1048576,5,FALSE), \"\")","v":""},"",{"$f":" IFERROR(VLOOKUP(B76,'2. HazardList'!$1:$1048576,6,FALSE),\"\")","v":""},{"$f":"IFERROR(VLOOKUP(B76,'2. HazardList'!$1:$1048576,7,FALSE),\"\")","v":""},{"$f":"IFERROR(VLOOKUP(B76,'2. HazardList'!$1:$1048576,8,FALSE),\"\")","v":""},""]
[null,null,{"$f":" IFERROR(VLOOKUP(B77,'2. HazardList'!$1:$1048576,3,FALSE), \"\")","v":""},{"$f":"IFERROR(VLOOKUP(B77,'2. HazardList'!$1:$1048576,4,FALSE),\"\")","v":""},{"$f":"IFERROR(VLOOKUP(B77,'2. HazardList'!$1:$1048576,5,FALSE), \"\")","v":""},"",{"$f":" IFERROR(VLOOKUP(B77,'2. HazardList'!$1:$1048576,6,FALSE),\"\")","v":""},{"$f":"IFERROR(VLOOKUP(B77,'2. HazardList'!$1:$1048576,7,FALSE),\"\")","v":""},{"$f":"IFERROR(VLOOKUP(B77,'2. HazardList'!$1:$1048576,8,FALSE),\"\")","v":""},""]
[null,null,{"$f":" IFERROR(VLOOKUP(B78,'2. HazardList'!$1:$1048576,3,FALSE), \"\")","v":""},{"$f":"IFERROR(VLOOKUP(B78,'2. HazardList'!$1:$1048576,4,FALSE),\"\")","v":""},{"$f":"IFERROR(VLOOKUP(B78,'2. HazardList'!$1:$1048576,5,FALSE), \"\")","v":""},"",{"$f":" IFERROR(VLOOKUP(B78,'2. HazardList'!$1:$1048576,6,FALSE),\"\")","v":""},{"$f":"IFERROR(VLOOKUP(B78,'2. HazardList'!$1:$1048576,7,FALSE),\"\")","v":""},{"$f":"IFERROR(VLOOKUP(B78,'2. HazardList'!$1:$1048576,8,FALSE),\"\")","v":""},""]
[null,null,{"$f":" IFERROR(VLOOKUP(B79,'2. HazardList'!$1:$1048576,3,FALSE), \"\")","v":""},{"$f":"IFERROR(VLOOKUP(B79,'2. HazardList'!$1:$1048576,4,FALSE),\"\")","v":""},{"$f":"IFERROR(VLOOKUP(B79,'2. HazardList'!$1:$1048576,5,FALSE), \"\")","v":""},{"$f":"IFERROR((D79*E79),\"\")","v":""},{"$f":" IFERROR(VLOOKUP(B79,'2. HazardList'!$1:$1048576,6,FALSE),\"\")","v":""},{"$f":"IFERROR(VLOOKUP(B79,'2. HazardList'!$1:$1048576,7,FALSE),\"\")","v":""},{"$f":"IFERROR(VLOOKUP(B79,'2. HazardList'!$1:$1048576,8,FALSE),\"\")","v":""},{"$f":"IFERROR((I79*H79),\"\")","v":""}]
[null,null,{"$f":" IFERROR(VLOOKUP(B80,'2. HazardList'!$1:$1048576,3,FALSE), \"\")","v":""},{"$f":"IFERROR(VLOOKUP(B80,'2. HazardList'!$1:$1048576,4,FALSE),\"\")","v":""},{"$f":"IFERROR(VLOOKUP(B80,'2. HazardList'!$1:$1048576,5,FALSE), \"\")","v":""},"",{"$f":" IFERROR(VLOOKUP(B80,'2. HazardList'!$1:$1048576,6,FALSE),\"\")","v":""},{"$f":"IFERROR(VLOOKUP(B80,'2. HazardList'!$1:$1048576,7,FALSE),\"\")","v":""},{"$f":"IFERROR(VLOOKUP(B80,'2. HazardList'!$1:$1048576,8,FALSE),\"\")","v":""},""]
[null,null,{"$f":" IFERROR(VLOOKUP(B81,'2. HazardList'!$1:$1048576,3,FALSE), \"\")","v":""},{"$f":"IFERROR(VLOOKUP(B81,'2. HazardList'!$1:$1048576,4,FALSE),\"\")","v":""},{"$f":"IFERROR(VLOOKUP(B81,'2. HazardList'!$1:$1048576,5,FALSE), \"\")","v":""},"",{"$f":" IFERROR(VLOOKUP(B81,'2. HazardList'!$1:$1048576,6,FALSE),\"\")","v":""},{"$f":"IFERROR(VLOOKUP(B81,'2. HazardList'!$1:$1048576,7,FALSE),\"\")","v":""},{"$f":"IFERROR(VLOOKUP(B81,'2. HazardList'!$1:$1048576,8,FALSE),\"\")","v":""},""]
[null,null,{"$f":" IFERROR(VLOOKUP(B82,'2. HazardList'!$1:$1048576,3,FALSE), \"\")","v":""},{"$f":"IFERROR(VLOOKUP(B82,'2. HazardList'!$1:$1048576,4,FALSE),\"\")","v":""},{"$f":"IFERROR(VLOOKUP(B82,'2. HazardList'!$1:$1048576,5,FALSE), \"\")","v":""},"",{"$f":" IFERROR(VLOOKUP(B82,'2. HazardList'!$1:$1048576,6,FALSE),\"\")","v":""},{"$f":"IFERROR(VLOOKUP(B82,'2. HazardList'!$1:$1048576,7,FALSE),\"\")","v":""},{"$f":"IFERROR(VLOOKUP(B82,'2. HazardList'!$1:$1048576,8,FALSE),\"\")","v":""},""]
[null,null,{"$f":" IFERROR(VLOOKUP(B83,'2. HazardList'!$1:$1048576,3,FALSE), \"\")","v":""},{"$f":"IFERROR(VLOOKUP(B83,'2. HazardList'!$1:$1048576,4,FALSE),\"\")","v":""},{"$f":"IFERROR(VLOOKUP(B83,'2. HazardList'!$1:$1048576,5,FALSE), \"\")","v":""},"",{"$f":" IFERROR(VLOOKUP(B83,'2. HazardList'!$1:$1048576,6,FALSE),\"\")","v":""},{"$f":"IFERROR(VLOOKUP(B83,'2. HazardList'!$1:$1048576,7,FALSE),\"\")","v":""},{"$f":"IFERROR(VLOOKUP(B83,'2. HazardList'!$1:$1048576,8,FALSE),\"\")","v":""},""]
[null,null,{"$f":" IFERROR(VLOOKUP(B84,'2. HazardList'!$1:$1048576,3,FALSE), \"\")","v":""},{"$f":"IFERROR(VLOOKUP(B84,'2. HazardList'!$1:$1048576,4,FALSE),\"\")","v":""},{"$f":"IFERROR(VLOOKUP(B84,'2. HazardList'!$1:$1048576,5,FALSE), \"\")","v":""},"",{"$f":" IFERROR(VLOOKUP(B84,'2. HazardList'!$1:$1048576,6,FALSE),\"\")","v":""},{"$f":"IFERROR(VLOOKUP(B84,'2. HazardList'!$1:$1048576,7,FALSE),\"\")","v":""},{"$f":"IFERROR(VLOOKUP(B84,'2. HazardList'!$1:$1048576,8,FALSE),\"\")","v":""},""]
[null,null,{"$f":" IFERROR(VLOOKUP(B85,'2. HazardList'!$1:$1048576,3,FALSE), \"\")","v":""},{"$f":"IFERROR(VLOOKUP(B85,'2. HazardList'!$1:$1048576,4,FALSE),\"\")","v":""},{"$f":"IFERROR(VLOOKUP(B85,'2. HazardList'!$1:$1048576,5,FALSE), \"\")","v":""},"",{"$f":" IFERROR(VLOOKUP(B85,'2. HazardList'!$1:$1048576,6,FALSE),\"\")","v":""},{"$f":"IFERROR(VLOOKUP(B85,'2. HazardList'!$1:$1048576,7,FALSE),\"\")","v":""},{"$f":"IFERROR(VLOOKUP(B85,'2. HazardList'!$1:$1048576,8,FALSE),\"\")","v":""},""]
[null,null,{"$f":" IFERROR(VLOOKUP(B86,'2. HazardList'!$1:$1048576,3,FALSE), \"\")","v":""},{"$f":"IFERROR(VLOOKUP(B86,'2. HazardList'!$1:$1048576,4,FALSE),\"\")","v":""},{"$f":"IFERROR(VLOOKUP(B86,'2. HazardList'!$1:$1048576,5,FALSE), \"\")","v":""},"",{"$f":" IFERROR(VLOOKUP(B86,'2. HazardList'!$1:$1048576,6,FALSE),\"\")","v":""},{"$f":"IFERROR(VLOOKUP(B86,'2. HazardList'!$1:$1048576,7,FALSE),\"\")","v":""},{"$f":"IFERROR(VLOOKUP(B86,'2. HazardList'!$1:$1048576,8,FALSE),\"\")","v":""},""]
[null,null,{"$f":" IFERROR(VLOOKUP(B87,'2. HazardList'!$1:$1048576,3,FALSE), \"\")","v":""},{"$f":"IFERROR(VLOOKUP(B87,'2. HazardList'!$1:$1048576,4,FALSE),\"\")","v":""},{"$f":"IFERROR(VLOOKUP(B87,'2. HazardList'!$1:$1048576,5,FALSE), \"\")","v":""},"",{"$f":" IFERROR(VLOOKUP(B87,'2. HazardList'!$1:$1048576,6,FALSE),\"\")","v":""},{"$f":"IFERROR(VLOOKUP(B87,'2. HazardList'!$1:$1048576,7,FALSE),\"\")","v":""},{"$f":"IFERROR(VLOOKUP(B87,'2. HazardList'!$1:$1048576,8,FALSE),\"\")","v":""},""]
[null,null,{"$f":" IFERROR(VLOOKUP(B88,'2. HazardList'!$1:$1048576,3,FALSE), \"\")","v":""},{"$f":"IFERROR(VLOOKUP(B88,'2. HazardList'!$1:$1048576,4,FALSE),\"\")","v":""},{"$f":"IFERROR(VLOOKUP(B88,'2. HazardList'!$1:$1048576,5,FALSE), \"\")","v":""},"",{"$f":" IFERROR(VLOOKUP(B88,'2. HazardList'!$1:$1048576,6,FALSE),\"\")","v":""},{"$f":"IFERROR(VLOOKUP(B88,'2. HazardList'!$1:$1048576,7,FALSE),\"\")","v":""},{"$f":"IFERROR(VLOOKUP(B88,'2. HazardList'!$1:$1048576,8,FALSE),\"\")","v":""},""]
[null,null,{"$f":" IFERROR(VLOOKUP(B89,'2. HazardList'!$1:$1048576,3,FALSE), \"\")","v":""},{"$f":"IFERROR(VLOOKUP(B89,'2. HazardList'!$1:$1048576,4,FALSE),\"\")","v":""},{"$f":"IFERROR(VLOOKUP(B89,'2. HazardList'!$1:$1048576,5,FALSE), \"\")","v":""},"",{"$f":" IFERROR(VLOOKUP(B89,'2. HazardList'!$1:$1048576,6,FALSE),\"\")","v":""},{"$f":"IFERROR(VLOOKUP(B89,'2. HazardList'!$1:$1048576,7,FALSE),\"\")","v":""},{"$f":"IFERROR(VLOOKUP(B89,'2. HazardList'!$1:$1048576,8,FALSE),\"\")","v":""},""]
[null,null,{"$f":" IFERROR(VLOOKUP(B90,'2. HazardList'!$1:$1048576,3,FALSE), \"\")","v":""},{"$f":"IFERROR(VLOOKUP(B90,'2. HazardList'!$1:$1048576,4,FALSE),\"\")","v":""},{"$f":"IFERROR(VLOOKUP(B90,'2. HazardList'!$1:$1048576,5,FALSE), \"\")","v":""},"",{"$f":" IFERROR(VLOOKUP(B90,'2. HazardList'!$1:$1048576,6,FALSE),\"\")","v":""},{"$f":"IFERROR(VLOOKUP(B90,'2. HazardList'!$1:$1048576,7,FALSE),\"\")","v":""},{"$f":"IFERROR(VLOOKUP(B90,'2. HazardList'!$1:$1048576,8,FALSE),\"\")","v":""},""]
[null,null,{"$f":" IFERROR(VLOOKUP(B91,'2. HazardList'!$1:$1048576,3,FALSE), \"\")","v":""},{"$f":"IFERROR(VLOOKUP(B91,'2. HazardList'!$1:$1048576,4,FALSE),\"\")","v":""},{"$f":"IFERROR(VLOOKUP(B91,'2. HazardList'!$1:$1048576,5,FALSE), \"\")","v":""},"",{"$f":" IFERROR(VLOOKUP(B91,'2. HazardList'!$1:$1048576,6,FALSE),\"\")","v":""},{"$f":"IFERROR(VLOOKUP(B91,'2. HazardList'!$1:$1048576,7,FALSE),\"\")","v":""},{"$f":"IFERROR(VLOOKUP(B91,'2. HazardList'!$1:$1048576,8,FALSE),\"\")","v":""},""]
[null,null,{"$f":" IFERROR(VLOOKUP(B92,'2. HazardList'!$1:$1048576,3,FALSE), \"\")","v":""},{"$f":"IFERROR(VLOOKUP(B92,'2. HazardList'!$1:$1048576,4,FALSE),\"\")","v":""},{"$f":"IFERROR(VLOOKUP(B92,'2. HazardList'!$1:$1048576,5,FALSE), \"\")","v":""},"",{"$f":" IFERROR(VLOOKUP(B92,'2. HazardList'!$1:$1048576,6,FALSE),\"\")","v":""},{"$f":"IFERROR(VLOOKUP(B92,'2. HazardList'!$1:$1048576,7,FALSE),\"\")","v":""},{"$f":"IFERROR(VLOOKUP(B92,'2. HazardList'!$1:$1048576,8,FALSE),\"\")","v":""},""]
[null,null,{"$f":" IFERROR(VLOOKUP(B93,'2. HazardList'!$1:$1048576,3,FALSE), \"\")","v":""},{"$f":"IFERROR(VLOOKUP(B93,'2. HazardList'!$1:$1048576,4,FALSE),\"\")","v":""},{"$f":"IFERROR(VLOOKUP(B93,'2. HazardList'!$1:$1048576,5,FALSE), \"\")","v":""},"",{"$f":" IFERROR(VLOOKUP(B93,'2. HazardList'!$1:$1048576,6,FALSE),\"\")","v":""},{"$f":"IFERROR(VLOOKUP(B93,'2. HazardList'!$1:$1048576,7,FALSE),\"\")","v":""},{"$f":"IFERROR(VLOOKUP(B93,'2. HazardList'!$1:$1048576,8,FALSE),\"\")","v":""},""]
[null,null,{"$f":" IFERROR(VLOOKUP(B94,'2. HazardList'!$1:$1048576,3,FALSE), \"\")","v":""},{"$f":"IFERROR(VLOOKUP(B94,'2. HazardList'!$1:$1048576,4,FALSE),\"\")","v":""},{"$f":"IFERROR(VLOOKUP(B94,'2. HazardList'!$1:$1048576,5,FALSE), \"\")","v":""},"",{"$f":" IFERROR(VLOOKUP(B94,'2. HazardList'!$1:$1048576,6,FALSE),\"\")","v":""},{"$f":"IFERROR(VLOOKUP(B94,'2. HazardList'!$1:$1048576,7,FALSE),\"\")","v":""},{"$f":"IFERROR(VLOOKUP(B94,'2. HazardList'!$1:$1048576,8,FALSE),\"\")","v":""},""]
[null,null,{"$f":" IFERROR(VLOOKUP(B95,'2. HazardList'!$1:$1048576,3,FALSE), \"\")","v":""},{"$f":"IFERROR(VLOOKUP(B95,'2. HazardList'!$1:$1048576,4,FALSE),\"\")","v":""},{"$f":"IFERROR(VLOOKUP(B95,'2. HazardList'!$1:$1048576,5,FALSE), \"\")","v":""},"",{"$f":" IFERROR(VLOOKUP(B95,'2. HazardList'!$1:$1048576,6,FALSE),\"\")","v":""},{"$f":"IFERROR(VLOOKUP(B95,'2. HazardList'!$1:$1048576,7,FALSE),\"\")","v":""},{"$f":"IFERROR(VLOOKUP(B95,'2. HazardList'!$1:$1048576,8,FALSE),\"\")","v":""},""]
[null,null,{"$f":" IFERROR(VLOOKUP(B96,'2. HazardList'!$1:$1048576,3,FALSE), \"\")","v":""},{"$f":"IFERROR(VLOOKUP(B96,'2. HazardList'!$1:$1048576,4,FALSE),\"\")","v":""},{"$f":"IFERROR(VLOOKUP(B96,'2. HazardList'!$1:$1048576,5,FALSE), \"\")","v":""},"",{"$f":" IFERROR(VLOOKUP(B96,'2. HazardList'!$1:$1048576,6,FALSE),\"\")","v":""},{"$f":"IFERROR(VLOOKUP(B96,'2. HazardList'!$1:$1048576,7,FALSE),\"\")","v":""},{"$f":"IFERROR(VLOOKUP(B96,'2. HazardList'!$1:$1048576,8,FALSE),\"\")","v":""},""]
[null,null,{"$f":" IFERROR(VLOOKUP(B97,'2. HazardList'!$1:$1048576,3,FALSE), \"\")","v":""},{"$f":"IFERROR(VLOOKUP(B97,'2. HazardList'!$1:$1048576,4,FALSE),\"\")","v":""},{"$f":"IFERROR(VLOOKUP(B97,'2. HazardList'!$1:$1048576,5,FALSE), \"\")","v":""},"",{"$f":" IFERROR(VLOOKUP(B97,'2. HazardList'!$1:$1048576,6,FALSE),\"\")","v":""},{"$f":"IFERROR(VLOOKUP(B97,'2. HazardList'!$1:$1048576,7,FALSE),\"\")","v":""},{"$f":"IFERROR(VLOOKUP(B97,'2. HazardList'!$1:$1048576,8,FALSE),\"\")","v":""},""]
[null,null,{"$f":" IFERROR(VLOOKUP(B98,'2. HazardList'!$1:$1048576,3,FALSE), \"\")","v":""},{"$f":"IFERROR(VLOOKUP(B98,'2. HazardList'!$1:$1048576,4,FALSE),\"\")","v":""},{"$f":"IFERROR(VLOOKUP(B98,'2. HazardList'!$1:$1048576,5,FALSE), \"\")","v":""},"",{"$f":" IFERROR(VLOOKUP(B98,'2. HazardList'!$1:$1048576,6,FALSE),\"\")","v":""},{"$f":"IFERROR(VLOOKUP(B98,'2. HazardList'!$1:$1048576,7,FALSE),\"\")","v":""},{"$f":"IFERROR(VLOOKUP(B98,'2. HazardList'!$1:$1048576,8,FALSE),\"\")","v":""},""]
[null,null,{"$f":" IFERROR(VLOOKUP(B99,'2. HazardList'!$1:$1048576,3,FALSE), \"\")","v":""},{"$f":"IFERROR(VLOOKUP(B99,'2. HazardList'!$1:$1048576,4,FALSE),\"\")","v":""},{"$f":"IFERROR(VLOOKUP(B99,'2. HazardList'!$1:$1048576,5,FALSE), \"\")","v":""},"",{"$f":" IFERROR(VLOOKUP(B99,'2. HazardList'!$1:$1048576,6,FALSE),\"\")","v":""},{"$f":"IFERROR(VLOOKUP(B99,'2. HazardList'!$1:$1048576,7,FALSE),\"\")","v":""},{"$f":"IFERROR(VLOOKUP(B99,'2. HazardList'!$1:$1048576,8,FALSE),\"\")","v":""},""]
[null,null,{"$f":" IFERROR(VLOOKUP(B100,'2. HazardList'!$1:$1048576,3,FALSE), \"\")","v":""},{"$f":"IFERROR(VLOOKUP(B100,'2. HazardList'!$1:$1048576,4,FALSE),\"\")","v":""},{"$f":"IFERROR(VLOOKUP(B100,'2. HazardList'!$1:$1048576,5,FALSE), \"\")","v":""},"",{"$f":" IFERROR(VLOOKUP(B100,'2. HazardList'!$1:$1048576,6,FALSE),\"\")","v":""},{"$f":"IFERROR(VLOOKUP(B100,'2. HazardList'!$1:$1048576,7,FALSE),\"\")","v":""},{"$f":"IFERROR(VLOOKUP(B100,'2. HazardList'!$1:$1048576,8,FALSE),\"\")","v":""},""]

{"sheet":"4.  Employees","index":4,"n_rows":1,"n_cols":1,"rows_kept":1}
["Please provide a list of employee names that will be working onsite at the project. A file will be created and kept onsite with Haskell Site Safety Manager which will include pertinant safety training documentation and qualifications."]

{"sheet":"5. Training Expectations","index":5,"n_rows":38,"n_cols":1,"rows_kept":38}
{"$rows_empty":14}
["Aerial/manlift mobile equipment use: Documentation from employer that workers operating and/or working from such vehicles are experienced and qualified training has been provided by a competent person."]
["Confined Space Entry: Documentation from employer that workers who are exposed to the hazards of confined space work are trained by a competent person. This includes those that enter confined space as well as confined space attendants."]
["COVID-19: Documentation from employer that all crew has been trained on the most current precautions and requirements for working in construction during the COVID-19 pandemic that has been issued by the state's governing body and the CDC to reduce the spread of the virus. This is a fluid event and requirements can change at any time."]
["Crane work: Documentation from employer that operators have current Mobile Crane Operator’s credentials on file with Haskell Safety prior to any crane operations."]
["Crane signaling: Documentation from employer that workers designated to perform crane signaling be competent in the application of the type of signals used, have a basic understanding of crane operation and limitations, including the crane dynamics involved in swinging and stopping loads and boom deflection from hoisting loads and demonstrate that they meet the requirements through an oral or written assessment and have passed a practical test."]
["Electrical work: If workers are directly working with or on electrical components - Documentation from employer that electricians are trained, certified and qualified. Other workers that are exposed to, but not working directly on or with electrical components should have a basic knowledge of electrical safety."]
["Excavating/Trenching: Documentation from employer that workers involved in excavation/trenching operations are trained, knowledgeable and competent of the risks involved, hazard recognition and hazard control."]
["Exposure to hazardous chemicals: Documentation from employer must show that all workers are aware of potentially hazardous chemicals, gases, fumes etc., that are present at the project site and what hazards are associated with exposure. Workers must be aware of the proper storage and disposal of chemicals associated with their work tasks, as well as what to do in the event of a spill or release."]
["Forklift operation: Documentation from employer that workers operating forklifts are taught by a trained professional in the field."]
["Heavy equipment operation: Documentation that workers operating heavy equipment, other than forklifts, are qualified operators for each piece of equipment on site. Vehicles that require operator license or certificate of formal training will require such proof."]
["Manual lifting: Documentation that workers are aware of the hazards involved with lifting materials that are heavy and/or awkward, and that they can identify physical limitations when it comes to materials handling. This includes knowing when to ask for help, whether it is another worker’s assistance or mechanical assistance.  "]
["Noise levels >85 decibels: Documentation from the employer that workers understand hearing conservation program and know when to utilize hearing protection (earplugs, ear muffs etc.) depending on the task and surrounding noise levels."]
["Personal Protective Equipment, use of and care for: Documentation from employer that workers understand appropriate use and selection of PPE required for specific tasks. Specific requirements for the PRC project will be communicated to all subcontractors and their workers prior to commencing work on the project."]
["Potential fire hazard/fire extinguishers in work area: Documentation from employer that workers exposed to the potential of fire, workers on a site that provide portable fire extinguishers or are engaged in a work task that requires the potential to utilize a fire extinguisher must be trained and knowledgeable in the operation of fire extinguishers. "]
["Respiratory protection, required or voluntary: FIT testing where appropriate to type of respirator needed and medical clearance. Documentation from employer that worker is aware of what respiratory protection is needed, why it is needed, when it is needed and what types are available. Facial hair is not allowed for workers who are in a respiratory protection program."]
["Rigging/hoisting activities: Riggers certification or proof of extensive knowledge and experience rigging, provided by employer and reviewed by Haskell."]
["Scaffold building: Documentation such as a degree, certificate or proof of training and knowledge from employer showing that workers erecting/modifying/tearing down, tagging or inspecting scaffolding are competent, experienced and knowledgeable."]
["Traffic control: Flagger certification if utilizing a flagger (when other reasonable traffic control methods do not adequately control traffic in the work zone). Workers on foot, equipment operators, drivers and spotters in internal work zones need to know the marked routes that construction vehicles will be using. For those not directly involved in controlling traffic, formal training is not required. However, JSA’s will include the hazards associated and controls to be utilized, signed by each worker that is on site and working in a high traffic zone. We will also cover this at safety meetings."]
["Power and Hand Tools: Documentation from employer that workers have the knowledge and training to operate powered and unpowered hand tools, including understanding the hazards associated with their use and the controls necessary to prevent injury to themselves and others or damage to the equipment. "]
["Welding: Documentation such as a degree, certificate or proof of extensive knowledge and experience that workers who perform hotwork are competent, experienced and knowledgeable of the hazards associated with welding, including but not limited to Hexavalent Chromium, proper use of compressed gases and fire extinguisher use."]
["Working at heights: Documentation from employer that workers who are exposed to working at heights are trained by a competent person in the hazards of working at heights, fall protection and other controls used in reducing the likelihood of a fall."]
["Working from scaffold: Documentation from employer that workers who are working from scaffolds have been trained by a qualified person in the hazards associated with scaffolds and the procedures to minimize them."]
["Working from ladders: Documentation from employer that workers climbing or working from ladders are trained, knowledgeable and competent in the use of, hazards associated with and the proper storage of ladders."]
["Work requiring isolation of energy (LOTO): Documentation from employer must show that workers engaged in tasks that requires energy isolation are trained, knowledgeable and competent in specific isolation techniques based on the task and the affected equipment or system. This includes knowing the hazards present and what controls, such as lock out/tag out, need to be in place to eliminate injury or damage due to sudden or uncontrolled releases of energy."]

{"sheet":"6.  Training Verification","index":6,"n_rows":29,"n_cols":5,"rows_kept":29,"merged":[[28,0,28,4]]}
[]
[]
["Hazards, Processess or Tasks","Training Required","Yes","DOC","# Emp"]
["Confined space, permitted or non-permitted","Confined Space Entry "]
["Signaling cranes to maneuver loads","Crane Hand Signals"]
["Exposure to electricity or electrical equipment","Electrical Safety"]
["Operating any mobile equipment or machinery other thatn forklift","Equipment Operator Training"]
["Working in trenchs and excavations","Excavation & Trenching"]
["Exposure to fall from heights greater than 4'","Fall Protection"]
["Potential fire hazard/fire extinguisers in work area","Fire extinguisher training "]
["Operating any forklift","Forklift"]
["Use of hand drills, chipping guns, grinder etc.","Hand & Power Tools"]
["Hazardous chemical exposure - Employees \"Right to Know\"","Hazard Communication"]
["Noise levels > 85 decibels","Hearing Conservation"]
["Hot/Cold environment","Heat/Cold Related Illness"]
["Welding fumes - welding and grinding (stainless steel)","Hexavalent Chromium"]
["Work from ladders","Ladder safety"]
["Work that requires energy isolation","Lock out/tag out"]
["Heavy manual lifting, loading and landing.","Materials Handling"]
["Work that requires respiratory protection.","Medical clearence and respirator fit test"]
["Work with or near to any heavy mobile equipment","Mobile Equipment Awareness"]
["Appropriate and required PPE","Personal Protective Equipment (PPE)"]
["Work requireing respirator use - voluntary use included","Respiratory Protection"]
["Rigging loads for crane or other lifts","Rigging"]
["Work from scaffolding.","Scaffold safety"]
["Chipping, mixing, grinding or hydroblasting of concrete","Silica"]
["Working in close proximity as defined in the Washington State Phase 1 Construction Restart COVID-19 Job Site Requirements","COVID-19"]
["Flagging/traffic control","Traffic safety"]
["Indicate any additional training your employees have. If the traiing is appropriate for this project, please provide documentation"]

{"sheet":"7.  Equipment","index":7,"n_rows":0,"n_cols":0,"rows_kept":0}